{"text_format":"1","workbook":"xlsx","n_sheets":12,"sheets":["о расходовании субсидии","о составе и количестве граждан","о предоставлении услуг","доп услуги","о деятельности","Мониторинг 1","Мониторинг 2","Мониторинг 3","6 собес","Дорожная карта табл.1","Дорожная карта табл.2","Лист1"],"not_rendered":{"charts":0,"images":0,"macros":1,"external_links":0,"defined_names":3,"comments":0,"pivot_tables":0},"unopened":[],"bounds":{"document_bytes":16777216,"sheet_cells":100000,"rows_first":2000,"rows_last":500,"rows_between":2000,"halvings":0,"cell_chars":16384,"cell_head_chars":4096},"cells_cut":0,"cells_raw":0,"read":"whole","date_system":"1900"}

{"sheet":"о расходовании субсидии","index":0,"n_rows":42,"n_cols":9,"rows_kept":42,"cut":false,"hidden":false,"merged":[[1,0,1,6],[0,0,0,6],[28,0,28,6],[2,0,2,6]]}
["ОТЧЕТ"]
["О расходовании субсидии, представленной за счет средств бюджета Республики Башкортостан на оказание услуги \"Социальное обслуживание на дому\",  за 2017 год"]
["Автономная некоммерческая организация Центр социального обслуживания населения \"Доброе дело\" на территории муниципального района Бирский район Республики Башкортостан и городского поселения город Бирск Республики Башкортостан"]
[null,"(наименование организации и муниципального образования РБ, на территории которого оказана услуга \"Социальное обслуживание на дому \")"]
[]
["№ п/п","Наименование расходов","Объем субсидии, полученной из бюджета Республики Башкортостан,  руб.","Кассовые расходы, руб.","Документ основание кассового расхода","Остаток субсидии,  руб.  ","Примечание"]
[1,2,3,4,5,6,7]
[1,"Прямые расходы",{"$f":"C9+C10+C11+C13","v":11960734.460000001},{"$f":"D9+D10+D11+D13","v":11960734.460000001},null,{"$f":"F9+F10+F11+F13","v":0},null,null,"ячейки не заполнять"]
["1.1","Оплата труда персонала, предоставляющего услугу \"Социальное обслуживание на дому\"",9186432,9186432,"п.п 6350 от 26.01, 2184,1848,1711,2 от 27.01, 2338,2315,2334,3350,3219,17,18 от 03.02,27 от 07.02, 2896 от 08.02, 25096 от 13.02, 4371 от 15.02, 2761 от 20.02, 1721,40,41 от 21.02, 7622,44 от 01.03, 49 от 02.03, 789,1749,1527,51 от 03.03, 1640 от 13.03, 67 от 15.03, 2371,2522 от 20.03, 12931,77 от 24.03, 2325 от 30.03, 29101,83,84 от 31.03, 94,88,4376,5270 от 04.04, 2603 от 06.04,  95 от 07.04, 97,140,3222 от 13.04, 107,3029 от 14.04, 2508,2347 от 20.04, 28213 от 21.04,  114,115, 126,1132 от 26.04, 129,4185 от 28.04, 138,144,7555 от 05.05,147,150,4863,8709,12531,12509 от 10.05, 6059 от 17.05, 928,2521 от 19.05, 2490 от 22.05, 156,976 от 30.05, 169,168,3521,5397 от 05.06, 4306 от 08.06,2098,от 13.06, 1354 от 15.06, 5416 от 20.06, 1304 от 21.06, 777,183,1161,774 от 30.06, 189,2385,1416,185 от 05.07, 10261 от 07.07, 15180,784812834 от 14.07, 9567 от 19.07, 586 от 28.07,  207 от 31.07, 220,228,225,224,227,1359,2224,214 от 04.08, 1514 от 11.08, 2125,1563 от 18.08,  237 от 21.08, 12119 от 25.08, 4630,4018,1754,244 от 31.08, 3420 от 04.09,249,1938,253 от 05.09, 1573 от 08.09, 248150, 248151 от 13.09, 4604 от 15.09,2180,1717 от 19.09, 5207,4013,267 от 28.09, 6679 от 29.09,  273,270,11734,3188 от 05.10, 2271 от 09.10, 899 от 13.10, 7097,5301 от 16.10, 4687,2402 от 18.10, 2480 от 20.10, 6491 от 27.10, 287 от 31.10,  294,291,2946,5252,4549, от 03.11, 2384 от 08.11, 1218 от 09.11, 31805 от 13.11, 7301 от 17.11, 11906,8371 от 20.11, 14013от 24.11, 2143 от 01.12, 320,318,4542,4311 от 05.12, 1581 от 08.12, 332,3170 от 11.12, 1989 от 15.12,2158 от 19.12, 5577от 20.12, 4887 от 25.12, 360,359,2525 от 26.12",{"$f":"C9-D9","v":0}]
["1.2","Начисления на выплаты по оплате труда персонала, предоставляющего услугу \"Социальное обслуживание на дому\"",2774302.46,2774302.46,"п.п. 19,20,21,22 от 03.02, 47,48,46,45 от 02.03, 92,93,91,90 от 04.04, 140,139,141,142 от 05.05, 163,164,161 от 05.06, 188,187 от 05.07, 194 от 14.07, 223,217,226,218,216,219 от 04.08, 250,255,251,254 от 05.09, 272,271 от 05.10, 296,293,292 от 03.11, 304 от 13.11, 321 от 05.12, 330,327,329,331,326,325,328,324 от 11.12, 343,342 от 19.12, 357,356,355 от 26.12 ",{"$f":"C10-D10","v":0}]
["1.3","Общехозяйственные расходы",{"$f":"C12","v":0},{"$f":"D12","v":0},null,{"$f":"F12","v":0},null,null,"ячейки не заполнять "]
["1.3.1","Увеличение стоимости материальных запасов",null,null,null,{"$f":"C12-D12","v":0}]
["1.4","Прочие расходы, непосредственно связанные с предоставлением  услуги \"Социальное обслуживание на дому\"",null,null,null,{"$f":"C13-D13","v":0}]
[2,"Косвенные расходы",{"$f":"SUM(C15:C17)","v":2880332.71},{"$f":"SUM(D15:D17)","v":2880332.71},null,{"$f":"SUM(F15:F17)","v":0}]
["2.1","Расходы на оплату труда управленческого персонала",1975842.44,1975842.44,"6580,6356,6372 от 26.01, 2184 от 27.01, 3303,17,18 от 03.02, 4062 от 07.02, 28289 от 13.02, 31 от 15.02, 1781,2761 от  20.02, 2063 от 03.03, 1781,2033,2522 от 20.03, 12197 от 24.03, 25822 от 31.03, 4688,88 от 04.04, 1810,2347 от 20.04, 144,7555 от 05.05, 2521 от 19.05, 2192 от 24.05, 4617,1287 от 30.05, 168,5397 от 05.06, 4306 от 08.06, 5416 от 20.06, 8186 от 28.06, 774 от 30.06, 3822 от 03.07, 937,185 от 05.07, 10261 от 07.07, 9567 от 19.07, 380 от 21.07, 1359,2224,214 от 04.08, 5860 от 07.08, 1563 от 18.08, 832 от 23.08, 253,1938 от 05.09,5290 от 06.09, 4604 от 15.09, 1717 от 19.09, 7500 от 26.09, 270,3188 от 05.10, 2271 от 09.10, 3936,2402 от 18.10, 5799 от 23.10, 291,4549 от 03.11, 8371 от 20.11, 318,4311 от 05.12, 2800 от 15.12, 2158 от 19.12, 5577 от 20.12, 359 от 26.12 ",{"$f":"C15-D15","v":0}]
["2.2.","Начисления на выплаты по оплате труда управленческого персонала",238031.96,238031.96,"п.п. 19,20,21,22 от 03.02, 47,48,46,45 от 02.03, 92,93,91,90 от 04.04, 140,139,141,142 от 05.05, 163,164,161 от 05.06, 188,187 от 05.07, 194 от 14.07, 223,217,226,218,216,219 от 04.08, 250,255,251,254 от 05.09, 272,271 от 05.10, 296,293,292 от 03.11, 304 от 13.11, 321 от 05.12, 330,327,329,331,326,325,328,324 от 11.12, 343,342 от 19.12, 357,356,355 от 26.12 ",{"$f":"C16-D16","v":0}]
["2.3","Косвенные общехозяйственные расходы",{"$f":"SUM(C18:C26)","v":666458.30999999994},{"$f":"SUM(D18:D26)","v":666458.30999999994},null,{"$f":"SUM(F18:F26)","v":0}]
["2.3.1","Услуги связи",96408.37,96408.37,"п.п. 10,11,12 от 27.01, 24 от 07.02, 37,35,36 от 21.02, 72,71 от 17.03, 123,124 от 26.04, 135,134,136 от 03.05, 172,173 от 08.06, 202,201 от 21.07, 231,234,235 от 15.08, 264,260 от 11.09,282,283 от 23.10, 309,308 от 13.11, 350,349,348 от 19.12",{"$f":"C18-D18","v":0}]
["2.3.2","Транспортные услуги",48000,48000,null,{"$f":"C19-D19","v":0}]
["2.3.3","Коммунальные услуги",119878.73,119878.73,"п.п. 1 от 17.01, 13 от 25.01, 6 от 27.01, 15,14 от 30.01, 25,26 от 07.02, 38 от 21.02, 54 от 02.03, 59 от 09.03, 75 от 22.03, 82 от 30.03, 109 от 18.04, 117 от 21.04, 127 от 28.04, 132 от 03.05, 153 от 19.05, 154 от 22.05, 155 от 30.05, 180 от 21.06, 182 от 27.06, 197 от 21.07, 205 от 28.07, 243 от 29.08, 259 от 08.09, 279,277 от 05.10, 286 от 27.10,  300 от 03.11, 303 от 09.11, 334 от 18.12, 344,338 от 19.12, 351 от 20.12, 353 от 25.12, 363 от 26.12",0]
["2.3.4","Арендная плата за пользование имуществом",5088,5088,"п.п. 3 от 27.01, 29 от 07.02, 52 от 02.03, 110 от 18.04, 130 от 03.05, 170 от 07.06, 191 от 14.07, 209 от 01.08, 257 от 08.09, 276 от 05.10, 301 от 09.11,337 от 18.12",0]
["2.3.5","Работы (услуги) по содержанию имущества",65127.72,65127.72,"п.п. 4 от 27.01, 30 от 07.02, 53 от 02.03, 111 от 18.04, 131 от 03.05, 171 от 07.06, 192 от 14.07, 210 от 01.08, 258 от 08.09, 275 от 05.10, 302 от 09.11, 339 от 19.12",0]
["2.3.6","Прочие работы (услуги)",331955.49,331955.49,"п.п 300208,11292,360101 от 13.01, 930622,930625,5,1829 от 27.01, 247523 от 30.01, 7782,16 от 31.01, 382161 от 01.02, 174438,4438,4518 от 07.02, 16513 от 13.02, 3731,2387 от 15.02, 759056 от 21.02, 897313,42,43 от 22.02, 16112 от 28.02, 407709 от 01.03, 915631,57,55,56 от 03.03,58 от 07.03, 484547,60 от 09.03, 620457,61 от 10.03, 10791 от 13.03, 411694 от 17.03, 799538,74 от 21.03, 928566 от 22.03,7189 от 24.03,  900053 от 30.03, 7103 от 31.03, 437679от 03.04, 96 от 07.04, 18194 от 11.04, 6908,112,108 от 18.04, 133915,116 от 19.04, 118,397065,22176,120 от 21.04, 125,924648 от 26.04, 128,100216 от 28.04, 469913 от 02.05, 763466 от 03.05,35061,146 от 05.05,  149,148 от 10.05, 22019 от 11.05, 232307,152 от 17.05, 783177 от 22.05, 158,159,777426 от 30.05, 491431 от 01.06, 177 оо 08.06, 17858 от 13.06, 178,179 от 19.06, 6605 от 21.06, 978483 от 27.06, 940,15187 от 30.06, 537820 от 03.07, 195,193 от 14.07,  203,27151,198,908321,12975 от 21.07, 560232 от 01.08, 212,229 от 04.08, 2755 от 11.08, 233 от 15.08,  236 от 18.08, 831,39576 от 21.08, 238,239 от 22.08, 241,507457 от 29.08,  4076,25394,23161 от 31.08, 591157 от 01.09,  247 от 05.09,83688,54933 от 11.09, 265,631190 от 15.09, 4503 от 26.09, 20038 от 29.09, 645255 от 02.10, 278,93129, от 05.10, 3068 от 09.10, 25772 от 11.10,  280 от 18.10 ,281,914011 от 20.10, 187664,11702 от 23.10, 11778 от 30.10, 8878 от 31.10, 686108 от 01.11,  299 от 03.11, 340315 от 09.11, 305,773465,25402 от 13.11, 310 от 17.11,313,312,638285 от 20.11, 10359 от 21.11, 737335 от 01.12,  323 от 07.12, 10384от 11.12,  333 от 12.12, 336,335,4718,2599,186315 от 18.12, 476184 от 20.12, 10733 от 21.12, 352,354 от 25.12, 311429 от 26.12",0]
["2.3.7","Прочие расходы, ",null,null,null,0]
["2.3.8","Увеличение стоимости основных средств",null,null,null,0]
["2.3.9","Увеличение стоимости материальных запасов",null,null,null,{"$f":"C26-D26","v":0}]
[null,"Итого",{"$f":"C8+C14","v":14841067.170000002},{"$f":"D8+D14","v":14841067.170000002},null,{"$f":"F8+F14","v":0}]
[]
["Достоверность представляемых сведений и целевое использование бюджетных средств подтверждаем:"]
[]
[]
[]
[]
[null,"Руководитель ",null,null,"/ Габдрахманова Е.Б. /"]
[null,null,null,null,"(расшифровка подписи)"]
[null,null,null,null,null,"М.П."]
[null,"Главный бухгалтер",null,null,"/ Арсланова О.Ю. /"]
[null,null,null,null,"(расшифровка подписи)"]
[]
[null,null,null,null,null,null,null,null,";"]
[null,"Арсланова Олеся Юоьевна",83478445305]
[null,"Исполнитель ФИО полностью. Тел."]

{"sheet":"о составе и количестве граждан","index":1,"n_rows":37,"n_cols":9,"rows_kept":37,"cut":false,"hidden":false,"merged":[[0,0,0,8],[1,0,1,8],[2,0,2,8],[3,0,3,8],[26,0,26,8],[6,3,6,4],[6,5,6,6],[6,7,6,8],[6,0,7,0],[6,1,7,1],[24,0,24,8]]}
["Отчет"]
["о составе и количестве граждан, обслуженных за 2017 год"]
[{"$f":"'о расходовании субсидии'!A3:G3","v":"Автономная некоммерческая организация Центр социального обслуживания населения \"Доброе дело\" на территории муниципального района Бирский район Республики Башкортостан и городского поселения город Бирск Республики Башкортостан"}]
["(наименование организации и муниципального образования РБ, на территории которого оказана услуга \"Социальное обслуживание на дому \")"]
[]
[]
["№ п/п","Наименование показателя","бесплатно","за частичную плату",null,"за полную оплату",null,"всего"]
[null,null,"количество обслуженных, чел.","количество обслуженных, чел.","выручка от оказания услуги, руб.","количество обслуженных, чел.","выручка от оказания услуги, руб.","количество обслуженных, чел.","выручка от оказания услуги, руб."]
["1",2,3,4,5,6,7,8,9]
[1,"Признанные нуждающимися в получении видов услуг в форме социального обслуживания на дому согласно Перечню услуг по видам социальных услуг, предоставляемых поставщиками социальных услуг в Республике Башкортостан, утвержденному Законом Республики Башкортостан \"О социальном обслуживании граждан в Республике Башкортостан\", чел. - всего,",{"$f":"C11","v":450},{"$f":"D11","v":29},{"$f":"E11","v":40295.5},{"$f":"F11","v":693},{"$f":"G11","v":2494485.56},{"$f":"C10+D10+F10","v":1172},{"$f":"E10+G10","v":2534781.06}]
["1.1","из них в возрасте:",{"$f":"SUM(C12:C14)","v":450},{"$f":"SUM(D12:D14)","v":29},{"$f":"SUM(E12:E14)","v":40295.5},{"$f":"SUM(F12:F14)","v":693},{"$f":"SUM(G12:G14)","v":2494485.56},1172,2534781.06]
["1.1.1","до 18 лет",1,null,null,null,null,1,0]
["1.1.2","18 - 59 лет",111,1,1542.13,37,175343.64,149,176885.77000000002]
["1.1.3","60 лет и старше",338,28,38753.370000000003,656,2319141.92,1022,2357895.29]
["1.2","в том числе из п.п 1.1  инвалиды - всего, из них в возрасте:",{"$f":"SUM(C16:C18)","v":50},{"$f":"SUM(D16:D18)","v":8},{"$f":"SUM(E16:E18)","v":7603.7800000000007},{"$f":"SUM(F16:F18)","v":211},{"$f":"SUM(G16:G18)","v":1203189.0299999998},269,1210792.8099999998]
["1.2.1","до 18 лет",1,null,null,null,null,1,0]
["1.2.2","18 - 59 лет",16,1,586.26,27,146476.65,44,147062.91]
["1.2.3","60 лет и старше",33,7,7017.52,184,1056712.3799999999,224,1063729.8999999999]
["1.3","в том числе из п.п 1.1  ветераны и участники  Великой Отечественной войны - всего, из них:",{"$f":"SUM(C20:C22)","v":6},{"$f":"SUM(D20:D22)","v":0},{"$f":"SUM(E20:E22)","v":0},{"$f":"SUM(F20:F22)","v":97},{"$f":"SUM(G20:G22)","v":486903.33},103,486903.33]
["1.3.1","участники Великой Отечественной войны",4,null,null,null,null,4,0]
["1.3.2","инвалиды Великой Отечественной войны",2,null,null,null,null,2,0]
["1.3.3","труженики тыла",null,null,null,97,486903.33,97,486903.33]
["1.4","в том числе из п.п1.1  вдовы участников и инвалидов Великой Отечественной войны- всего",null,null,null,26,192245.2,26,192245.2]
[]
["* При наличии хозяйственного общества таблица заполняется с учетом его данных"]
[]
["Достоверность представленных сведений и целевое использование бюджетных средств подтверждаем:"]
[]
[]
[null,"Руководитель ",null,null,"/Габдрахманова Е.Б. /",null,null,"М.П."]
[null,null,null,null,"расшифровка подписи"]
[]
[null,"Главный бухгалтер",null,null,"/ Арсланова О.Ю. /"]
[null,null,null,null,"расшифровка подписи"]
[]
[null,"Кузнецова Гульшат Ансаровна ","(834784) 4-52-35"]
["Исполнитель ФИО (полностью), тел."]

{"sheet":"о предоставлении услуг","index":2,"n_rows":106,"n_cols":24,"rows_kept":106,"cut":false,"hidden":false,"merged":[[6,20,8,22],[6,17,8,19],[6,13,8,15],[0,0,0,12],[1,0,1,12],[2,0,2,12],[3,0,3,12],[55,1,55,12],[6,10,8,12],[6,0,9,0],[6,2,8,5],[44,1,44,12],[11,1,11,12],[33,1,33,12],[6,1,8,1],[6,6,8,9],[103,4,103,5],[65,1,65,12],[73,1,73,12],[81,1,81,12],[100,4,100,5],[96,0,96,8],[86,1,86,12]]}
["ОТЧЕТ"]
["о предоставлении услуг в форме социального обслуживания на дому за  2017 год"]
[{"$f":"'о расходовании субсидии'!A3:G3","v":"Автономная некоммерческая организация Центр социального обслуживания населения \"Доброе дело\" на территории муниципального района Бирский район Республики Башкортостан и городского поселения город Бирск Республики Башкортостан"}]
["(наименование организации)"]
[]
[]
["№ п/п","Услуги оказанные за счет средств бюджета Республики Башкортостан","Количество получателей услуги*, чел. ",null,null,null,"Количество видов услуги, оказанной в форме социального обслуживания на дому (стандартных)",null,null,null,"Выручка от оказания услуги получателям, признанрным нуждающимися, руб.",null,null,"Среднее количество оказываемых услуг",null,null,null,"Сверка значений с максимальным средним",null,null,"Проверка по тарифам"]
[]
[]
[null,"Наименование социальной услуги","бесплатно","за частичную  оплату","за полную оплату","за оплату сверх стандарта","бесплатно","за частичную  оплату","за полную оплату","за оплату сверх стандарта","частичная оплата","полная оплата","Оплата сверх стандарта","бесплатно","за частичную  оплату","за полную оплату","максимальное  среднее ","бесплатно","за частичную  оплату","за полную оплату","Средняя стоимость обслуживания ","Тарифы","Сверка средней стоимости обслуживания с тарифом"]
[1,2,3,4,5,6,7,8,9,10,11,12,13]
[null,"1. Социально-бытовые виды услуг"]
["1.1","Покупка за счет средств получателя  услуги и доставка на дом продуктов питания (за исключением алкогольной продукции), горячих готовых блюд, промышленных товаров первой необходимости, средств санитарии и гигиены, средств ухода, книг, газет, журналов",153,12,264,null,{"$f":"SUM(G14:G16)","v":12901},{"$f":"SUM(H14:H16)","v":906},20868,1559,6424.24,338832,28241,117.02677281438892,{"$error":"#DIV/0!"},109.56948051948052,105,0,{"$error":"#DIV/0!"},0,1.3771350896461865,45,0]
["1.1.1","Покупка за счет средств получателя социальных услуг и доставка на дом продуктов питания (за исключением алкогольной продукции), горячих готовых блюд",153,8,264,7,10236,764,18690,476,4454.6400000000003,299040,7616,{"$f":"G14/C14","v":66.901960784313729},{"$f":"H14/D14","v":95.5},{"$f":"I14/E14","v":70.795454545454547},78,{"$f":"N14<=Q14","v":true},{"$f":"O14<=Q14","v":false},{"$f":"P14<=Q14","v":true},{"$f":"K14/G14","v":0.43519343493552171},16,{"$f":"V14=U14","v":false}]
["1.1.2","Покупка за счет средств получателя социальных услуг и доставка на дом промышленных товаров первой необходимост, средств санитарии и гигиены, средства ухода",105,12,140,67,2091,142,1572,831,1969.6,36156,19113,19.914285714285715,11.833333333333334,11.228571428571428,9,false,false,false,{"$f":"K15/G15","v":0.94194165471066471},23,false]
["1.1.3","Покупка за счет средств получателя социальных услуг и доставка на дом книг, газет, журналов",19,null,22,7,574,null,606,252,null,3636,1512,30.210526315789473,{"$error":"#DIV/0!"},27.545454545454547,18,false,{"$error":"#DIV/0!"},false,0,6,false]
["1.2","Помощь получателю в приготовлении пищи",17,1,29,9,672,96,1515,555,493.21,12726,4662,39.529411764705884,96,52.241379310344826,78,true,false,true,0.73394345238095238,8.4,false]
["1.3","Приготовление пищи лицам, не способным по состоянию здоровья самостоятельно готовить",4,null,30,9,714,null,1497,930,null,26197.5,16275,178.5,{"$error":"#DIV/0!"},49.9,78,false,{"$error":"#DIV/0!"},true,0,17.5,false]
["1.4","Кормление получателей социальных услуг, не способных по состоянию здоровья самостоятельно питаться",1,null,2,1,288,null,144,126,null,2332.8000000000002,2041.2,288,{"$error":"#DIV/0!"},72,78,false,{"$error":"#DIV/0!"},true,0,16.2,false]
["1.5","Предоставление санитарно-гигиенических услуг лицам, не способным по состоянию здоровья самостоятельно обслуживать себя",3,null,28,11,498,null,1442,2244,null,6384.15,11054.4,166,{"$error":"#DIV/0!"},51.5,39,false,{"$error":"#DIV/0!"},false,0,5.3,false]
["1.6","Содействие получателю услуги в получении медицинских услуг на базе медицинских организаций",1,null,1,null,3,null,18,null,null,84.6,null,3,{"$error":"#DIV/0!"},18,78,true,{"$error":"#DIV/0!"},true,0,4.7,false]
["1.7"," Обеспечение временного ухода (кратковременного присмотра) за инвалидом, ребенком",42,null,1,null,1106,null,12,null,null,1498.8,null,26.333333333333332,{"$error":"#DIV/0!"},12,78,true,{"$error":"#DIV/0!"},true,0,124.9,false]
["1.8","Содействие получателю услуги в посещении театров, выставок и других культурных мероприятий, в том числе в сопровождении социального работника",null,null,null,null,null,null,null,null,null,null,null,{"$error":"#DIV/0!"},{"$error":"#DIV/0!"},{"$error":"#DIV/0!"},9,{"$error":"#DIV/0!"},{"$error":"#DIV/0!"},{"$error":"#DIV/0!"},{"$error":"#DIV/0!"},18.2,{"$error":"#DIV/0!"}]
["1.9","Уборка жилого помещения получателя услуги",341,29,684,584,2961,642,31260,19432,22081.97,783733.78,739717.71,8.6832844574780061,22.137931034482758,45.701754385964911,78,true,true,true,7.4576055386693687,8.9,false]
["1.10","Сдача за счет средств получателя услуги вещей в стирку, химчистку, ремонт, обратная их доставка",7,null,5,1,36,null,51,3,null,683.4,40.200000000000003,5.1428571428571432,{"$error":"#DIV/0!"},10.199999999999999,9,true,{"$error":"#DIV/0!"},false,0,13.4,false]
["1.11","Оказание за счет средств получателя социальных услуг прачечных услуг (стирка и глажка белья)",1,null,40,9,41,null,793,214,null,27759.08,3830.4,41,{"$error":"#DIV/0!"},19.824999999999999,39,false,{"$error":"#DIV/0!"},true,0,24,false]
["1.12","Покупка за счет средств получателя социальных услуг топлива (в жилых помещениях без центрального отопления и (или) водоснабжения), топка печей, обеспечение водой",287,13,261,42,22007,1056,20507,3909,8460.1,241519.69,52341.35,76.679442508710807,81.230769230769226,78.570881226053643,78,true,false,false,0.38442768210114964,21.3,false]
["1.13","предоставление услуг по обработке приусадебного участка, а также оказание услуг и выполнение работ, обеспечивающих жизнедеятельность получателей  услуг, проживающих в жилых помещениях, не обеспеченных инженерными системами",null,null,5,4,null,null,66,48,null,2943,921.6,{"$error":"#DIV/0!"},{"$error":"#DIV/0!"},13.2,37,{"$error":"#DIV/0!"},{"$error":"#DIV/0!"},true,{"$error":"#DIV/0!"}]
["1.14","Содействие получателю услуги в организации и проведении ремонта жилых помещений",null,null,null,null,null,null,null,null,null,null,null,{"$error":"#DIV/0!"},{"$error":"#DIV/0!"},{"$error":"#DIV/0!"},1,{"$error":"#DIV/0!"},{"$error":"#DIV/0!"},{"$error":"#DIV/0!"},{"$error":"#DIV/0!"},22.6,{"$f":"V29=U29","v":{"$error":"#DIV/0!"}}]
["1.15"," Оплата за счет средств получателя  услуги жилищно-коммунальных услуг и услуг связи",254,17,382,null,2778,195,4484,null,432.27,79366.8,null,10.937007874015748,11.470588235294118,11.738219895287958,9,false,false,false,0.15560475161987039,17.7,{"$f":"V30=U30","v":false}]
["1.16","Отправка за счет средств получателя социальных услуги почтовой корреспонденции, помощь в написании и (или) прочтении писем, в том числе электронных",null,null,5,2,null,null,57,45,null,592.79999999999995,468,{"$error":"#DIV/0!"},{"$error":"#DIV/0!"},11.4,null,{"$error":"#DIV/0!"},{"$error":"#DIV/0!"},false,{"$error":"#DIV/0!"},10.4,{"$f":"V31=U31","v":{"$error":"#DIV/0!"}}]
["1.17"," Содействие получателю услуги в организация ритуальных услуг либо организация ритуальных услуг при отсутствии у умершего получателя  услуги родственников или их отказе заняться погребением",null,null,null,null,null,null,null,null,null,null,null,null,null,null,null,null,null,null,null,"бесплатно"]
[null,"Итого ",450,29,693,null,{"$f":"SUM(G17:G32,G13)","v":44005},{"$f":"SUM(H17:H32,H13)","v":2895},82714,29065,37891.79,1524654.4000000001,859592.85999999987]
[null,"2. Социально-медицинские виды услуги"]
["2.1","Выполнение процедур, связанных с сохранением здоровья получателя  услуги (измерение температуры тела, артериального давления, контроль за приемом лекарств, закапывание капель и другие)",9,3,14,6,816,48,613,72,246.2,8520.7000000000007,1000.8,{"$f":"G35/C35","v":90.666666666666671},16,43.785714285714285,78,{"$f":"N35<=Q35","v":false},{"$f":"O35<=Q35","v":true},{"$f":"P35<=Q35","v":true},{"$f":"K35/G35","v":0.30171568627450979},13.9,{"$f":"V35=U35","v":false}]
["2.2"," Оказание помощиполучателю услуги  в освоении и выполнении посильных физических упражнений",null,null,1,null,null,null,168,null,null,1461.6,null,{"$error":"#DIV/0!"},{"$error":"#DIV/0!"},168,78,{"$f":"N36<=Q36","v":{"$error":"#DIV/0!"}},{"$f":"O36<=Q36","v":{"$error":"#DIV/0!"}},{"$f":"P36<=Q36","v":false},{"$error":"#DIV/0!"},8.6999999999999993,{"$error":"#DIV/0!"}]
["2.3","Содействие получателю услуги в госпитализации, сопровождении в медицинские организации",1,null,10,null,36,null,201,null,null,7095.3,null,null,null,null,null,null,null,null,0,35.299999999999997,false]
["2.4","Содействие получателю услуги  в обеспечении по рецептам врачей лекарственными препаратами и медицинскими изделиями",237,15,369,null,6200,627,9373,null,2157.5100000000002,90866.3,null,{"$f":"G38/C38","v":26.160337552742615},41.8,25.401084010840108,78,{"$f":"N38<=Q38","v":true},{"$f":"O38<=Q38","v":true},{"$f":"P38<=Q38","v":true},0.34798548387096778,10.3,false]
["2.5"," Содействие получателю услуги  в прохождении медико-социальной экспертизы",null,null,null,null,null,null,null,null,null,null,null,{"$error":"#DIV/0!"},{"$error":"#DIV/0!"},{"$error":"#DIV/0!"},1,{"$f":"N39<=Q39","v":{"$error":"#DIV/0!"}},{"$f":"O39<=Q39","v":{"$error":"#DIV/0!"}},{"$f":"P39<=Q39","v":{"$error":"#DIV/0!"}},{"$error":"#DIV/0!"},43.5,{"$error":"#DIV/0!"}]
["2.6","Содействие  получтелю услуги в получении  путевок на санаторно-курортное лечение",null,null,null,null,null,null,null,null,null,null,null,{"$error":"#DIV/0!"},{"$error":"#DIV/0!"},{"$error":"#DIV/0!"},1,{"$f":"N40<=Q40","v":{"$error":"#DIV/0!"}},{"$f":"O40<=Q40","v":{"$error":"#DIV/0!"}},{"$f":"P40<=Q40","v":{"$error":"#DIV/0!"}},{"$error":"#DIV/0!"},34.6,{"$error":"#DIV/0!"}]
["2.7","Содействие получателю услуги в получении зубопротезной и протезно-ортопедической помощи, а также в обеспечении техническими средствами реабилитации",null,null,null,null,null,null,null,null,null,null,null,{"$error":"#DIV/0!"},{"$error":"#DIV/0!"},{"$error":"#DIV/0!"},1,{"$f":"N41<=Q41","v":{"$error":"#DIV/0!"}},{"$f":"O41<=Q41","v":{"$error":"#DIV/0!"}},{"$f":"P41<=Q41","v":{"$error":"#DIV/0!"}},{"$error":"#DIV/0!"},47.2,{"$error":"#DIV/0!"}]
["2.8","Оказание получателю услуги первой помощи до оказания медицинской помощи",3,null,null,null,18,null,null,null,null,null,null,null,null,null,null,null,null,null,null,"бесплатно"]
["2.9","Вызов врача на дом к получателю услуги",5,null,null,null,72,null,null,null,null,null,null,null,null,null,null,null,null,null,null,"бесплатно"]
[null,"Итого ",237,15,369,null,{"$f":"SUM(G35:G43)","v":7142},{"$f":"SUM(H35:H43)","v":675},10355,72,{"$f":"SUM(K35:K43)","v":2403.71},107943.90000000001,1000.8,{"$error":"#DIV/0!"},{"$error":"#DIV/0!"},{"$error":"#DIV/0!"},237,{"$error":"#DIV/0!"},{"$error":"#DIV/0!"},{"$error":"#DIV/0!"},{"$error":"#DIV/0!"},193.5,{"$error":"#DIV/0!"}]
[null,"3. Социально-психологические виды услуги"]
["3.1","Социально-психологическое консультирование получателя услуги, в том числе по вопросам внутрисемейных отношений"]
["3.2","Осуществление психологической диагностики и коррекции поведения получателя услуги"]
["3.3","Проведение психологических тренингов для получателей услуги"]
["3.4","Содействие в диагностическом обследовании психофизического, интеллектуального и эмоционального развития детей дошкольного возраста, находящихся на стационарном социальном обслуживании, изучение их склонностей и способностей для определения степени готовности к школе"]
["3.5","Содействие в проведении психолого-медицинского обследования детей, находящихся на стационарном социальном обслуживании"]
["3.6","Оказание получателям услуги психологической помощи в установлении или восстановлении утраченных контактов с семьей, возвращении детей родителям или лицам, их заменяющим, а также в восстановлении или установлении социального статуса в коллективе сверстников по месту учебы"]
["3.7","Экстренная психологическая помощь детям по телефону",null,null,null,null,null,null,null,null,null,null,null,null,null,null,null,null,null,null,null,"бесплатно"]
["3.8","Социально-психологический патронаж получателей услуги",null,null,null,null,null,null,null,null,null,null,null,null,null,null,null,null,null,null,null,"бесплатно"]
["3.9","Оказание психологической (экстренной психологической) помощи, в том числе гражданам, осуществляющим уход на дому за тяжелобольными получателями услуги",1126,null,null,null,87509,null,null,null,null,null,null,null,null,null,null,null,null,null,null,"бесплатно"]
[null,"Итого ",1126,null,null,null,{"$f":"SUM(G46:G54)","v":87509},{"$f":"SUM(H46:H54)","v":0},0,0,0,0,0]
[null,"4. Социально-педагогические виды услуги"]
["4.1","Социально-педагогическая коррекция получателя услуги, включая диагностику и консультирование"]
["4.2","Содействие детям, находящимся на стационарном социальном обслуживании, в получении дошкольного образования, среднего общего образования, среднего, профессионального образования"]
["4.3","Организация обучения детей-инвалидов навыкам самообслуживания, адекватного поведения в быту и общественных местах, самоконтролю, навыкам общения и другим формам жизнедеятельности"]
["4.4","Организация помощи родителям или законным представителям детей-инвалидов, воспитываемых дома, в обучении таких детей навыкам самообслуживания, общения и контроля, направленным на развитие личности",null,null,null,null,null,null,null,null,null,null,null,null,null,null,null,null,null,null,{"$f":"K60/G60","v":{"$error":"#DIV/0!"}},3.6,{"$f":"V60=U60","v":{"$error":"#DIV/0!"}}]
["4.5","Содействие в обучении языку жестов детей-инвалидов с нарушениями слуха, их родителей и других заинтересованных лиц",null,null,null,null,null,null,null,null,null,null,null,null,null,null,null,null,null,null,{"$f":"K61/G61","v":{"$error":"#DIV/0!"}},8.5,{"$f":"V61=U61","v":{"$error":"#DIV/0!"}}]
["4.6","Содействие получателям услуги в предоставлении услуг по переводу на язык жестов в соответствии с индивидуальными программами реабилитации инвалидов (детей-инвалидов)",null,null,null,null,null,null,null,null,null,null,null,null,null,null,null,null,null,null,{"$f":"K62/G62","v":{"$error":"#DIV/0!"}},3.6,{"$f":"V62=U62","v":{"$error":"#DIV/0!"}}]
["4.7","Обучение родственников практическим навыкам общего ухода за тяжелобольными получателями услуги",null,null,null,null,null,null,null,null,null,null,null,{"$f":"G63/C63","v":{"$error":"#DIV/0!"}},{"$f":"H63/D63","v":{"$error":"#DIV/0!"}},{"$f":"I63/E63","v":{"$error":"#DIV/0!"}},1,{"$f":"N63<=Q63","v":{"$error":"#DIV/0!"}},{"$f":"O63<=Q63","v":{"$error":"#DIV/0!"}},{"$f":"P63<=Q63","v":{"$error":"#DIV/0!"}},{"$f":"K63/G63","v":{"$error":"#DIV/0!"}},46.6,{"$f":"V63=U63","v":{"$error":"#DIV/0!"}}]
["4.8","Организация досуга и отдыха получателей услуги, в том числе организация и проведение клубной и кружковой работы"]
[null,"Итого ",null,null,null,null,{"$f":"SUM(G57:G64)","v":0},{"$f":"SUM(H57:H64)","v":0},0,0,0,0,0]
[null,"5. Социально-трудовые виды услуги\n"]
["5.1","Оказание помощи получателю услуги в получении услуги по трудоустройству в специализированные организации",null,null,null,null,null,null,null,null,null,null,null,{"$f":"G67/C67","v":{"$error":"#DIV/0!"}},{"$f":"H67/D67","v":{"$error":"#DIV/0!"}},{"$f":"I67/E67","v":{"$error":"#DIV/0!"}},1,{"$f":"N67<=Q67","v":{"$error":"#DIV/0!"}},{"$f":"O67<=Q67","v":{"$error":"#DIV/0!"}},{"$f":"P67<=Q67","v":{"$error":"#DIV/0!"}},{"$f":"K67/G67","v":{"$error":"#DIV/0!"}},12,{"$f":"V67=U67","v":{"$error":"#DIV/0!"}}]
["5.2","Проведение мероприятий по использованию остаточных трудовых возможностей и обучению доступным профессиональным навыкам получателей услуги"]
["5.3","Организация профессиональной ориентации детей (детей-инвалидов), находящихся на стационарном социальном обслуживании"]
["5.4","Консультирование детей, находящихся на стационарном социальном обслуживании, по вопросам жизненного устройства и выбора профессии"]
["5.5","Организация помощи в получении образования и (или) профессии инвалидами (детьми-инвалидами) в соответствии с их способностями",null,null,null,null,null,null,null,null,null,null,null,{"$f":"G71/C71","v":{"$error":"#DIV/0!"}},{"$f":"H71/D71","v":{"$error":"#DIV/0!"}},{"$f":"I71/E71","v":{"$error":"#DIV/0!"}},1,{"$f":"N71<=Q71","v":{"$error":"#DIV/0!"}},{"$f":"O71<=Q71","v":{"$error":"#DIV/0!"}},{"$f":"P71<=Q71","v":{"$error":"#DIV/0!"}},{"$error":"#DIV/0!"},8.3000000000000007,{"$f":"V71=U71","v":{"$error":"#DIV/0!"}}]
["5.6","Содействие получателям услуги в организации труда инвалидов и членов их семей на дому",null,null,null,null,null,null,null,null,null,null,null,null,null,null,null,null,null,null,{"$error":"#DIV/0!"},3.6,{"$f":"V72=U72","v":{"$error":"#DIV/0!"}}]
[null,"Итого ",null,null,null,null,{"$f":"SUM(G67:G72)","v":0},{"$f":"SUM(H67:H72)","v":0},0,0,0,0,0]
[null,"6. Социально-правовые виды услуги\n"]
["6.1","Консультирование получателей услуги по вопросам, связанным с правом граждан на социальное обслуживание и защиту своих интересов",null,null,null,null,null,null,null,null,null,null,null,{"$f":"G75/C75","v":{"$error":"#DIV/0!"}},{"$f":"H75/D75","v":{"$error":"#DIV/0!"}},{"$f":"I75/E75","v":{"$error":"#DIV/0!"}},1.5,{"$f":"N75<=Q75","v":{"$error":"#DIV/0!"}},{"$f":"O75<=Q75","v":{"$error":"#DIV/0!"}},{"$f":"P75<=Q75","v":{"$error":"#DIV/0!"}},null,"бесплатно"]
["6.2","Содействие получателю услуги в получении бесплатной юридической помощи в рамках соответствующей государственной системы",null,null,null,null,null,null,null,null,null,null,null,null,null,null,null,null,null,null,null,"бесплатно"]
["6.3","Оказание помощи получателю услуги в решении вопросов жизнеустройства детей-сирот и детей, оставшихся без попечения родителей, в оформлении документов на лишение родительских прав родителей"]
["6.4","Содействие получателю услуги в оформлении документов для получения направления в организации стационарного социального обслуживания при наличии соответствующих показаний",null,null,2,null,null,null,4,null,null,94.8,null,{"$f":"G78/C78","v":{"$error":"#DIV/0!"}},{"$error":"#DIV/0!"},2,1,{"$f":"N78<=Q78","v":{"$error":"#DIV/0!"}},{"$f":"O78<=Q78","v":{"$error":"#DIV/0!"}},{"$f":"P78<=Q78","v":false},{"$f":"K78/G78","v":{"$error":"#DIV/0!"}},23.7,{"$f":"V78=U78","v":{"$error":"#DIV/0!"}}]
["6.5","Оказание помощи получателю услуги в оформлении и восстановлении документов",null,null,2,null,null,null,12,null,null,825.6,null,{"$error":"#DIV/0!"},{"$error":"#DIV/0!"},6,1,{"$f":"N79<=Q79","v":{"$error":"#DIV/0!"}},{"$f":"O79<=Q79","v":{"$error":"#DIV/0!"}},{"$f":"P79<=Q79","v":false},{"$f":"K79/G79","v":{"$error":"#DIV/0!"}},68.8,{"$f":"V79=U79","v":{"$error":"#DIV/0!"}}]
["6.6","Содействие получателю услуги в получении мер социальной поддержки",null,null,1,null,null,null,6,null,null,373.2,null,{"$error":"#DIV/0!"},{"$error":"#DIV/0!"},6,1.5,{"$error":"#DIV/0!"},{"$error":"#DIV/0!"},false,{"$f":"K80/G80","v":{"$error":"#DIV/0!"}},62.2,{"$error":"#DIV/0!"}]
[null,"Итого ",null,null,5,null,{"$f":"SUM(G75:G80)","v":0},{"$f":"SUM(H75:H80)","v":0},22,0,{"$f":"SUM(K75:K80)","v":0},1293.5999999999999,0,{"$error":"#DIV/0!"},{"$error":"#DIV/0!"},{"$error":"#DIV/0!"},5,{"$error":"#DIV/0!"},{"$error":"#DIV/0!"},{"$error":"#DIV/0!"},{"$error":"#DIV/0!"},154.69999999999999,{"$error":"#DIV/0!"}]
[null,"7. Виды услуги в целях повышения коммуникативного потенциала получателей услуги, имеющих ограничения жизнедеятельности, в том числе детей-инвалидов\n"]
["7.1","Обучение инвалидов (детей-инвалидов) пользованию средствами ухода и техническими средствами реабилитации",null,null,null,null,null,null,null,null,null,null,null,{"$f":"G83/C83","v":{"$error":"#DIV/0!"}},{"$f":"H83/D83","v":{"$error":"#DIV/0!"}},{"$f":"I83/E83","v":{"$error":"#DIV/0!"}},1,{"$error":"#DIV/0!"},{"$error":"#DIV/0!"},{"$error":"#DIV/0!"},null,"бесплатно"]
["7.2","Содействие получателю услуги в формировании у него навыков общения и здорового образа жизни"]
["7.3","Оказание помощи получателю услуги в овладении компьютерной грамотностью",null,null,null,null,null,null,null,null,null,null,null,{"$f":"G85/C85","v":{"$error":"#DIV/0!"}},{"$f":"H85/D85","v":{"$error":"#DIV/0!"}},{"$f":"I85/E85","v":{"$error":"#DIV/0!"}},1,{"$error":"#DIV/0!"},{"$error":"#DIV/0!"},{"$error":"#DIV/0!"},{"$f":"K85/G85","v":{"$error":"#DIV/0!"}},3.6,{"$error":"#DIV/0!"}]
[null,"Итого ",null,null,null,null,{"$f":"SUM(G83:G85)","v":0},{"$f":"SUM(H83:H85)","v":0},0,0,0,0,0,{"$error":"#DIV/0!"},{"$error":"#DIV/0!"},{"$error":"#DIV/0!"},2,{"$error":"#DIV/0!"},{"$error":"#DIV/0!"},{"$error":"#DIV/0!"},{"$error":"#DIV/0!"},3.6,{"$error":"#DIV/0!"}]
[null,"8. Срочные виды услуги\n"]
["8.1","Обеспечение получателя услуги бесплатным горячим питанием или набором продуктов"]
["8.2","Обеспечение получателя услуги одеждой, обувью и другими предметами первой необходимости"]
["8.3","Содействие получателю услуги в получении временного приюта"]
["8.4","Содействие получателю услуги в получении юридической помощи в целях защиты своих прав и законных интересов"]
["8.5","Содействие получателю услуги в получении экстренной психологической помощи с привлечением к этой работе психологов и священнослужителей"]
[null,"Итого ",null,null,null,null,{"$f":"SUM(G88:G92)","v":0},{"$f":"SUM(H88:H92)","v":0},0,0,0,0,0]
[null,"Итого ",450,29,693,null,{"$f":"G93+G86+G81+G73+G65+G55+G44+G33","v":138656},3570,93091,29137,40295.5,1633891.9000000001,860593.65999999992,null,null,null,null,null,null,null,null,null,null,"заполняете  сами фактическое кол-во обслуженных ПСУ"]
[]
[null,"*Признанных нуждающимися в социальном обслуживании (имеют ИПСУ)"]
["Достоверность представленных сведений и целевое использование бюджетных средств подтверждаем:"]
[]
[]
[null,"Руководитель ","____________",null,"/ Габдрахманова Е.Б.  /"]
[null,null,null,null,"расшифровка подписи",null,null,null,"М.П."]
[]
[null,"Главный бухгалтер","_________________________",null,"/Арсланова О.Ю. /"]
[null,null,null,null,"расшифровка подписи"]
[]
[null,"Исполнитель ФИО (полностью), тел.","Кузнецова Гульшат Ансаровна",null,null,null,83478445235]

{"sheet":"доп услуги","index":3,"n_rows":33,"n_cols":5,"rows_kept":33,"cut":false,"hidden":false,"merged":[[21,0,21,4],[0,0,0,4],[1,0,1,4],[2,0,2,4],[3,0,3,4]]}
["ОТЧЕТ"]
["о количестве получателей и об объемах оказанных дополнительных социальный услуг за счет средств получателей социальной услуги за 12 месяцев 2017 года *"]
[{"$f":"'о расходовании субсидии'!A3:G3","v":"Автономная некоммерческая организация Центр социального обслуживания населения \"Доброе дело\" на территории муниципального района Бирский район Республики Башкортостан и городского поселения город Бирск Республики Башкортостан"}]
["(наименование организации)"]
[]
[]
["№ п/п","Наименование дополнительной услуги в соответствии с утвержденным приказом организации от ______№____________","Количество получателей дополнительных социальных услуг**, чел.","Количество оказанных дополнительных социальных услуг, ед.","Объем прибыли от оказания дополнительных социальных услуг, руб."]
[1,2,3,4,5]
[1,"Социально-бытовые",144,11525,247699.82]
[2,"Социально-медицинские",40,424,11787]
[3,"Социально-психологические"]
[4,"Социально-педагогические"]
[5,"Социально-трудовые"]
[6,"Социально-правовые"]
[7,"Услуги в целях повышения коммуникативного потенциала получателей социальных услуг, имеющих ограничения жизнедеятельности, в том числе детей-инвалидов"]
[8,"Срочные социальные услуги"]
[9,"Прочие социальные услуги"]
[null,"Итого",184,{"$f":"SUM(D9:D17)","v":11949},{"$f":"SUM(E9:E17)","v":259486.82}]
[]
["* При наличии хозяйственного общества таблица заполняется с учетом его данных"]
["**Признанных нуждающимися в социальном обслуживании (имеют ИППСУ)"]
["Достоверность представленных сведений и целевое использование бюджетных средств подтверждаем:"]
[]
[]
["Руководитель ",null,"_________________","/Габдрахманова Е.Б/"]
[null,null,null,"расшифровка подписи"]
[]
["Главный бухгалтер",null,"_________________","/Арсланова О.Ю./"]
[null,null,null,"расшифровка подписи"]
[]
["М.П.","Кузнецова Гульшат Ансаровна","(834784) 4-52-35"]
[null,"Исполнитель ФИО (полностью)"]
[null," телефон "]

{"sheet":"о деятельности","index":4,"n_rows":54,"n_cols":9,"rows_kept":54,"cut":false,"hidden":false,"merged":[[38,8,39,10],[43,0,43,2],[0,0,0,2],[1,0,1,2],[2,0,2,2],[3,0,3,2]]}
["ОТЧЕТ "]
["о деятельности, связанной с предоставлением услуги \"Социальное обслуживание на дому\" за 12 месяцев 2017 года"]
[{"$f":"'о расходовании субсидии'!A3:G3","v":"Автономная некоммерческая организация Центр социального обслуживания населения \"Доброе дело\" на территории муниципального района Бирский район Республики Башкортостан и городского поселения город Бирск Республики Башкортостан"}]
["(наименование организации и муниципального образования РБ, на территории которого оказана услуга \"Социальное обслуживание на дому \")"]
[]
[]
["№ п/п","Наименование показателя","Значение показателя "]
[1,2,3]
[1,"Общая площадь территории населенного пункта, жители которого обслуживаются данной организацией, кв. м",1786000,"будьте внимательны площадь в квадратных метрах (м^2)"]
[2,"Численность населения населенного пункта, в котором расположена организация, чел.",64690]
[3,"Количество обратившихся за оказанием услуги, чел.",1172]
[4,"Численность населения, которому оказаны услуги, чел.",{"$f":"'о составе и количестве граждан'!H10","v":1172}]
[5,"Количество оказанных услуг, ед. - всего, в том числе по видам:",{"$f":"SUM(C14:C22)","v":276403},null,null,null,null,null,"строку не заполнять"]
["5.1","социально-бытовых",{"$f":"SUM('о предоставлении услуг'!G33:J33)+'доп услуги'!D9","v":170204}]
["5.2","социально-медицинских",{"$f":"SUM('о предоставлении услуг'!G44:J44)+'доп услуги'!D10","v":18668}]
["5.3","социально-психологических",{"$f":"SUM('о предоставлении услуг'!G55:J55)+'доп услуги'!D11","v":87509}]
["5.4","социально-педагогических",{"$f":"SUM('о предоставлении услуг'!G65:J65)+'доп услуги'!D12","v":0}]
["5.5","социально-трудовых",{"$f":"SUM('о предоставлении услуг'!G73:J73)+'доп услуги'!D13","v":0}]
["5.6","социально-правовых",{"$f":"SUM('о предоставлении услуг'!G81:J81)+'доп услуги'!D14","v":22}]
["5.7","услуг в целях повышения коммуникативного потенциала получателей услуг",{"$f":"SUM('о предоставлении услуг'!G86:J86)+'доп услуги'!D15","v":0}]
["5.8","срочные",{"$f":"SUM('о предоставлении услуг'!G93:J93)+'доп услуги'!D16","v":0}]
["5.9","прочие",{"$f":"'доп услуги'!D17","v":0}]
["6","Очередность на получение услуги, чел.",{"$f":"C11-C12","v":0}]
["7","Штатная численность организации, чел. - всего, в том числе:",{"$f":"SUM(C25:C27)","v":85},null,null,null,null,null,"строку не заполнять"]
["7.1","административно-управленческий персонал",8]
["7.2","основной штат (социальные работники)",77]
["7.3","вспомогательный персонал"]
["8","Фактическая численность персонала, чел. - всего, в том числе:",{"$f":"SUM(C29:C31)","v":79},null,null,null,null,null,"строку не заполнять"]
["8.1","административно-управленческий персонал",8]
["8.2","основной (социальные работники)",71]
["8.3","вспомогательный"]
["9","Укомплектованность организации персоналом, %",93,"Укажите значение от 0 до 100, если 100 то следующую  строку 10 можно не заполнять "]
["10","Причина неукомплектованности организации персоналом","1-временная вакансия, 5 социальных работников находятся в декретном отпуске","Сначала заполните строку 9"]
["11","Финансирование организации, тыс. рублей - всего, в том числе:",{"$f":"'о расходовании субсидии'!C27/1000","v":14841.067170000002}]
["11.1","фонд оплаты труда - всего, в том числе по группам персонала:",{"$f":"('о расходовании субсидии'!C9+'о расходовании субсидии'!C15)/1000","v":11162.274439999999},{"$f":"SUM(C36:C38)","v":11162.2744},{"$f":"IF(C35=D35,\"Верно\",\"Не совпадают, введите правильные значения\")","v":"Не совпадают, введите правильные значения"},null,null,null,"строку не заполнять"]
["11.1.1","административно-управленческий персонал",1975.8424]
["11.1.2","основной штат (социальные работники)",9186.4320000000007]
["11.1.3","вспомогательный штат"]
["12","Средняя заработная плата основного персонала (социальных работников) организации, руб.",{"$f":"(C37/C30)*1000/12","v":10782.197183098593},null,null,null,null,null,"считать среднюю зарплату как среднемесячную от фактической численности"]
["13","Средняя заработная плата административно-управленческого персонала, руб. ",{"$f":"(C36/C29)*1000/12","v":20581.691666666666}]
[]
[]
[]
["Достоверность представленных сведений и целевое использование бюджетных средств подтверждаем:"]
[]
[]
["Руководитель ",null,"/Габдрахманова Е.Б. /"]
[null,null,"(расшифровка подписи)"]
[]
["Главный бухгалтер",null,"/Арсланова О.Ю./"]
[null,null,"(расшифровка подписи)"]
["М.П."]
[null,"Исполнитель Кузнецова Гульшат Ансаровна",83478445235]
[null," телефон "]

{"sheet":"Мониторинг 1","index":5,"n_rows":33,"n_cols":158,"rows_kept":33,"cut":false,"hidden":false,"merged":[[26,0,26,3],[26,4,26,22],[27,29,27,34],[26,29,26,34],[26,47,26,52],[26,35,26,40],[27,59,27,64],[26,65,26,70],[27,65,27,70],[26,53,26,58],[26,59,26,64],[26,41,26,46],[27,35,27,40],[32,16,32,47],[31,16,31,47],[31,50,31,81],[27,71,27,76],[27,41,27,46],[27,47,27,52],[27,77,27,82],[27,0,27,3],[27,5,27,22],[27,23,27,28],[27,157,27,166],[27,151,27,156],[27,135,27,140],[27,95,27,100],[27,113,27,118],[27,101,27,106],[27,141,27,150],[32,50,32,81],[27,53,27,58],[27,119,27,124],[27,107,27,112],[30,119,30,150],[29,119,29,150],[27,125,27,134],[26,125,26,134],[30,97,30,116],[25,113,25,118],[29,97,29,116],[26,71,26,76],[25,107,25,112],[25,71,25,76],[25,83,25,88],[26,89,26,94],[27,89,27,94],[26,101,26,106],[26,107,26,112],[26,95,26,100],[26,77,26,82],[27,83,27,88],[26,83,26,88],[26,113,26,118],[26,119,26,124],[25,157,25,166],[25,141,25,150],[25,125,25,134],[24,141,24,150],[25,151,25,156],[25,135,25,140],[24,135,24,140],[24,125,24,134],[24,157,24,166],[24,151,24,156],[24,119,24,124],[24,107,24,112],[24,95,24,100],[25,89,25,94],[25,101,25,106],[25,95,25,100],[24,113,24,118],[24,89,24,94],[25,77,25,82],[24,77,24,82],[25,119,25,124],[24,101,24,106],[23,89,23,94],[24,83,24,88],[23,83,23,88],[23,107,23,112],[23,77,23,82],[25,53,25,58],[23,41,23,46],[23,53,23,58],[23,47,23,52],[25,65,25,70],[23,65,23,70],[25,59,25,64],[23,71,23,76],[23,59,23,64],[24,41,24,46],[24,65,24,70],[24,71,24,76],[24,47,24,52],[24,53,24,58],[24,59,24,64],[25,47,25,52],[22,0,22,3],[22,5,22,22],[25,35,25,40],[24,5,24,22],[23,0,23,3],[23,5,23,22],[24,35,24,40],[25,41,25,46],[23,23,23,28],[24,0,24,3],[23,29,23,34],[23,35,23,40],[24,23,24,28],[24,29,24,34],[25,0,25,3],[25,5,25,22],[25,29,25,34],[25,23,25,28],[23,157,23,166],[23,151,23,156],[23,141,23,150],[23,113,23,118],[23,119,23,124],[23,125,23,134],[22,107,22,112],[22,77,22,82],[22,71,22,76],[22,23,22,28],[22,29,22,34],[22,41,22,46],[21,71,21,76],[22,113,22,118],[23,135,23,140],[22,135,22,140],[23,101,23,106],[23,95,23,100],[22,83,22,88],[20,47,20,52],[20,71,20,76],[20,65,20,70],[21,83,21,88],[20,53,20,58],[22,119,22,124],[21,101,21,106],[22,35,22,40],[21,157,21,166],[22,53,22,58],[22,47,22,52],[22,59,22,64],[21,125,21,134],[21,89,21,94],[21,95,21,100],[21,53,21,58],[21,65,21,70],[22,89,22,94],[22,101,22,106],[21,59,21,64],[20,89,20,94],[22,157,22,166],[22,141,22,150],[21,41,21,46],[19,119,19,124],[19,113,19,118],[19,59,19,64],[20,83,20,88],[20,77,20,82],[22,125,22,134],[22,95,22,100],[21,151,21,156],[21,141,21,150],[21,135,21,140],[21,113,21,118],[21,119,21,124],[22,65,22,70],[21,77,21,82],[21,107,21,112],[22,151,22,156],[20,95,20,100],[20,119,20,124],[20,113,20,118],[19,101,19,106],[20,101,20,106],[20,107,20,112],[20,59,20,64],[19,107,19,112],[19,157,19,166],[19,125,19,134],[19,151,19,156],[20,157,20,166],[20,135,20,140],[20,141,20,150],[19,141,19,150],[20,125,20,134],[19,135,19,140],[20,151,20,156],[19,71,19,76],[19,65,19,70],[19,89,19,94],[19,95,19,100],[19,83,19,88],[19,0,19,3],[19,77,19,82],[17,53,17,58],[17,65,17,70],[18,59,18,64],[17,59,17,64],[18,65,18,70],[18,53,18,58],[18,71,18,76],[18,89,18,94],[0,131,4,166],[6,155,6,166],[11,33,11,133],[14,119,15,134],[15,95,15,106],[8,117,8,120],[8,96,8,112],[8,113,8,116],[15,59,15,70],[14,29,16,34],[14,151,15,166],[14,135,15,150],[14,47,14,118],[15,83,15,94],[15,107,15,118],[15,71,15,82],[16,151,16,156],[10,33,10,133],[14,41,16,46],[16,47,16,52],[15,47,15,58],[16,53,16,58],[16,89,16,94],[16,59,16,64],[17,0,17,3],[17,4,17,22],[17,23,17,28],[18,5,18,22],[17,71,17,76],[16,95,16,100],[16,71,16,76],[16,65,16,70],[17,35,17,40],[17,41,17,46],[18,35,18,40],[18,41,18,46],[17,47,17,52],[16,83,16,88],[14,0,16,3],[14,4,16,22],[14,23,16,28],[14,35,16,40],[17,29,17,34],[18,47,18,52],[18,0,18,3],[17,95,17,100],[18,77,18,82],[18,95,18,100],[18,107,18,112],[21,0,21,3],[21,5,21,22],[21,23,21,28],[20,29,20,34],[20,23,20,28],[21,29,21,34],[20,0,20,3],[20,5,20,22],[21,35,21,40],[21,47,21,52],[20,35,20,40],[20,41,20,46],[19,5,19,22],[19,47,19,52],[18,23,18,28],[18,101,18,106],[19,29,19,34],[19,41,19,46],[19,35,19,40],[19,23,19,28],[18,83,18,88],[18,29,18,34],[19,53,19,58],[17,107,17,112],[17,101,17,106],[16,77,16,82],[17,77,17,82],[16,125,16,134],[17,83,17,88],[17,125,17,134],[16,119,16,124],[17,113,17,118],[16,113,16,118],[16,107,16,112],[16,101,16,106],[17,89,17,94],[16,141,16,150],[18,113,18,118],[18,157,18,166],[18,151,18,156],[17,119,17,124],[17,157,17,166],[17,151,17,156],[18,141,18,150],[18,125,18,134],[18,119,18,124],[18,135,18,140],[16,157,16,166],[17,141,17,150],[17,135,17,140],[16,135,16,140]]}
[null,null,null,null,null,null,null,null,null,null,null,null,null,null,null,null,null,null,null,null,null,null,null,null,null,null,null,null,null,null,null,null,null,null,null,null,null,null,null,null,null,null,null,null,null,null,null,null,null,null,null,null,null,null,null,null,null,null,null,null,null,null,null,null,null,null,null,null,null,null,null,null,null,null,null,null,null,null,null,null,null,null,null,null,null,null,null,null,null,null,null,null,null,null,null,null,null,null,null,null,null,null,null,null,null,null,null,null,null,null,null,null,null,null,null,null,null,null,null,null,null,null,null,null,null,null,null,null,null,null,null,"Приложение №1                                                             к таблице  \"Перечень отчетной документации в сфере социального обслуживания граждан пожилого возраста\""]
[]
[]
[]
[]
[]
[null,null,null,null,null,null,null,null,null,null,null,null,null,null,null,null,null,null,null,null,null,null,null,null,null,null,null,null,null,null,null,null,null,null,null,null,null,null,null,null,null,null,null,null,null,null,null,null,null,null,null,null,null,null,null,null,null,null,null,null,null,null,null,null,null,null,null,null,null,null,null,null,null,null,null,null,null,null,null,null,null,null,null,null,null,null,null,null,null,null,null,null,null,null,null,null,null,null,null,null,null,null,null,null,null,null,null,null,null,null,null,null,null,null,null,null,null,null,null,null,null,null,null,null,null,null,null,null,null,null,null,null,null,null,null,null,null,null,null,null,null,null,null,null,null,null,null,null,null,null,null,null,null,null,null,"Форма 6"]
[]
[null,null,null,null,null,null,null,null,null,null,null,null,null,null,null,null,null,null,null,null,null,null,null,null,null,null,null,null,null,null,null,null,null,null,null,null,null,null,null,null,null,null,null,null,null,null,null,null,null,null,null,null,null,null,null,null,null,null,null,null,null,null,null,null,null,null,null,null,null,null,null,null,null,null,null,null,null,null,null,null,null,null,null,null,null,null,null,null,null,null,null,null,null,null,null,"Сведения о предоставлении социальных услуг за ","12 месяцев",null,null,null,null,null,null,null,null,null,null,null,null,null,null,null,null,20,null,null,null,"17",null,null,null," года"]
[]
[null,null,null,null,null,null,null,null,null,null,null,null,null,null,null,null,null,null,null,null,null,null,null,null,null,null,null,null,null,null,null,null,null,{"$f":"'о расходовании субсидии'!A3","v":"Автономная некоммерческая организация Центр социального обслуживания населения \"Доброе дело\" на территории муниципального района Бирский район Республики Башкортостан и городского поселения город Бирск Республики Башкортостан"}]
[null,null,null,null,null,null,null,null,null,null,null,null,null,null,null,null,null,null,null,null,null,null,null,null,null,null,null,null,null,null,null,null,null,"(наименование уполномоченного органа субъекта Российской Федерации)"]
[]
[null,"Представляется: ежемесячно, до 15 числа месяца, следующего за отчетным периодом"]
["№\nп/п",null,null,null,"Наименование видов социальных услуг",null,null,null,null,null,null,null,null,null,null,null,null,null,null,null,null,null,null,"Количество социальных услуг, включенных в перечень\nсубъекта Российской Федерации (единиц)",null,null,null,null,null,"Количество оказанных социальных услуг из числа включенных\nв перечень субъекта Российской Федерации (единиц)",null,null,null,null,null,"Количество дополнительных (платных)\nсоциальных услуг (единиц)",null,null,null,null,null,"Количество оказанных дополнительных (платных)\nсоциальных услуг (единиц)",null,null,null,null,null,"Количество социальных услуг, оказанных поставщиками\nсоциальных услуг (из числа установленных)",null,null,null,null,null,null,null,null,null,null,null,null,null,null,null,null,null,null,null,null,null,null,null,null,null,null,null,null,null,null,null,null,null,null,null,null,null,null,null,null,null,null,null,null,null,null,null,null,null,null,null,null,null,null,null,null,null,null,null,null,null,null,null,null,null,null,null,null,null,null,null,"Получатели социальных услуг, нуждающиеся в социальном обслуживании на дому",null,null,null,null,null,null,null,null,null,null,null,null,null,null,null,"Получатели социальных услуг, нуждающиеся в социальном обслуживании в полустационарной форме",null,null,null,null,null,null,null,null,null,null,null,null,null,null,null,"Получатели социальных услуг, нуждающиеся в социальном обслуживании в стационарной форме"]
[null,null,null,null,null,null,null,null,null,null,null,null,null,null,null,null,null,null,null,null,null,null,null,null,null,null,null,null,null,null,null,null,null,null,null,null,null,null,null,null,null,null,null,null,null,null,null,"организации социального обслуживания, находящиеся в ведении субъекта Российской Федерации",null,null,null,null,null,null,null,null,null,null,null,"коммерческие организации\nсоциального обслуживания",null,null,null,null,null,null,null,null,null,null,null,"некоммерческие организации\nсоциального обслуживания",null,null,null,null,null,null,null,null,null,null,null,"некоммерческие социально ориентированные организации социального обслуживания,\nиз них:",null,null,null,null,null,null,null,null,null,null,null,"социально ориентированные организации социального обслуживания",null,null,null,null,null,null,null,null,null,null,null,"индивидуальные предприниматели, предоставляющие социальные услуги"]
[null,null,null,null,null,null,null,null,null,null,null,null,null,null,null,null,null,null,null,null,null,null,null,null,null,null,null,null,null,null,null,null,null,null,null,null,null,null,null,null,null,null,null,null,null,null,null,"количество (единиц)",null,null,null,null,null,"доля от общего количества (%)",null,null,null,null,null,"количество (единиц)",null,null,null,null,null,"доля от общего количества (%)",null,null,null,null,null,"количество (единиц)",null,null,null,null,null,"доля от общего количества (%)",null,null,null,null,null,"количество (единиц)",null,null,null,null,null,"доля от общего количества (%)",null,null,null,null,null,"количество (единиц)",null,null,null,null,null,"доля от общего количества (%)",null,null,null,null,null,"количество (единиц)",null,null,null,null,null,"доля от общего количества (%)",null,null,null,null,null,"численность (человек)",null,null,null,null,null,"доля от общей числен-ности обратившихся\nза предоставлением социальных услуг (%)",null,null,null,null,null,null,null,null,null,"численность (человек)",null,null,null,null,null,"доля от общей числен-ности обратившихся\nза предоставлением социальных услуг (%)",null,null,null,null,null,null,null,null,null,"численность (человек)",null,null,null,null,null,"доля от общей числен-ности обратившихся\nза предоставлением социальных услуг (%)"]
[1,null,null,null,2,null,null,null,null,null,null,null,null,null,null,null,null,null,null,null,null,null,null,3,null,null,null,null,null,4,null,null,null,null,null,5,null,null,null,null,null,6,null,null,null,null,null,7,null,null,null,null,null,8,null,null,null,null,null,9,null,null,null,null,null,10,null,null,null,null,null,11,null,null,null,null,null,12,null,null,null,null,null,13,null,null,null,null,null,14,null,null,null,null,null,15,null,null,null,null,null,16,null,null,null,null,null,17,null,null,null,null,null,18,null,null,null,null,null,19,null,null,null,null,null,20,null,null,null,null,null,null,null,null,null,21,null,null,null,null,null,22,null,null,null,null,null,null,null,null,null,23,null,null,null,null,null,24]
[1,null,null,null,null,"Социально-\nбытовые",null,null,null,null,null,null,null,null,null,null,null,null,null,null,null,null,null,46,null,null,null,null,null,{"$f":"AV19+BH19+BT19+CF19+CR19+DD19","v":158679},null,null,null,null,null,125,null,null,null,null,null,{"$f":"'доп услуги'!D9","v":11525},null,null,null,null,null,null,null,null,null,null,null,null,null,null,null,null,null,null,null,null,null,null,null,null,null,null,null,null,null,{"$f":"SUM('о предоставлении услуг'!G33:J33)","v":158679},null,null,null,null,null,{"$f":"BT19/AD19*100","v":100},null,null,null,null,null,null,null,null,null,null,null,null,null,null,null,null,null,null,null,null,null,null,null,null,null,null,null,null,null,null,null,null,null,null,null,null,null,null,null,null,null,{"$f":"SUM('о предоставлении услуг'!C33:E33)","v":1172},null,null,null,null,null,{"$f":"DP19*100/DP28","v":100}]
[2,null,null,null,null,"Социально-медицинские",null,null,null,null,null,null,null,null,null,null,null,null,null,null,null,null,null,31,null,null,null,null,null,{"$f":"AV20+BH20+BT20+CF20+CR20+DD20","v":18244},null,null,null,null,null,4,null,null,null,null,null,{"$f":"'доп услуги'!D10","v":424},null,null,null,null,null,null,null,null,null,null,null,null,null,null,null,null,null,null,null,null,null,null,null,null,null,null,null,null,null,{"$f":"SUM('о предоставлении услуг'!G44:J44)","v":18244},null,null,null,null,null,{"$f":"BT20/AD20*100","v":100},null,null,null,null,null,null,null,null,null,null,null,null,null,null,null,null,null,null,null,null,null,null,null,null,null,null,null,null,null,null,null,null,null,null,null,null,null,null,null,null,null,{"$f":"SUM('о предоставлении услуг'!C44:E44)","v":621},null,null,null,null,null,{"$f":"DP20*100/DP28","v":52.986348122866893}]
[3,null,null,null,null,"Социально-психологические",null,null,null,null,null,null,null,null,null,null,null,null,null,null,null,null,null,9,null,null,null,null,null,87509,null,null,null,null,null,null,null,null,null,null,null,{"$f":"'доп услуги'!D11","v":0},null,null,null,null,null,null,null,null,null,null,null,null,null,null,null,null,null,null,null,null,null,null,null,null,null,null,null,null,null,{"$f":"SUM('о предоставлении услуг'!G55:J55)","v":87509},null,null,null,null,null,100,null,null,null,null,null,null,null,null,null,null,null,null,null,null,null,null,null,null,null,null,null,null,null,null,null,null,null,null,null,null,null,null,null,null,null,null,null,null,null,null,null,{"$f":"SUM('о предоставлении услуг'!C55:E55)","v":1126},null,null,null,null,null,{"$f":"DP21*100/DP28","v":96.075085324232077}]
["4",null,null,null,null,"Социально-педагогические",null,null,null,null,null,null,null,null,null,null,null,null,null,null,null,null,null,8,null,null,null,null,null,0,null,null,null,null,null,null,null,null,null,null,null,{"$f":"'доп услуги'!D12","v":0},null,null,null,null,null,null,null,null,null,null,null,null,null,null,null,null,null,null,null,null,null,null,null,null,null,null,null,null,null,{"$f":"SUM('о предоставлении услуг'!G65:J65)","v":0},null,null,null,null,null,{"$error":"#DIV/0!"},null,null,null,null,null,null,null,null,null,null,null,null,null,null,null,null,null,null,null,null,null,null,null,null,null,null,null,null,null,null,null,null,null,null,null,null,null,null,null,null,null,{"$f":"SUM('о предоставлении услуг'!C65:E65)","v":0},null,null,null,null,null,{"$f":"DP22*100/DP28","v":0}]
[5,null,null,null,null,"Социально-\nтрудовые",null,null,null,null,null,null,null,null,null,null,null,null,null,null,null,null,null,6,null,null,null,null,null,0,null,null,null,null,null,null,null,null,null,null,null,{"$f":"'доп услуги'!D13","v":0},null,null,null,null,null,null,null,null,null,null,null,null,null,null,null,null,null,null,null,null,null,null,null,null,null,null,null,null,null,{"$f":"SUM('о предоставлении услуг'!G73:J73)","v":0},null,null,null,null,null,{"$error":"#DIV/0!"},null,null,null,null,null,null,null,null,null,null,null,null,null,null,null,null,null,null,null,null,null,null,null,null,null,null,null,null,null,null,null,null,null,null,null,null,null,null,null,null,null,{"$f":"SUM('о предоставлении услуг'!C73:E73)","v":0},null,null,null,null,null,{"$f":"DP23*100/DP28","v":0}]
[6,null,null,null,null,"Социально-\nправовые",null,null,null,null,null,null,null,null,null,null,null,null,null,null,null,null,null,6,null,null,null,null,null,22,null,null,null,null,null,1,null,null,null,null,null,{"$f":"'доп услуги'!D14","v":0},null,null,null,null,null,null,null,null,null,null,null,null,null,null,null,null,null,null,null,null,null,null,null,null,null,null,null,null,null,{"$f":"SUM('о предоставлении услуг'!G81:J81)","v":22},null,null,null,null,null,100,null,null,null,null,null,null,null,null,null,null,null,null,null,null,null,null,null,null,null,null,null,null,null,null,null,null,null,null,null,null,null,null,null,null,null,null,null,null,null,null,null,{"$f":"SUM('о предоставлении услуг'!C81:E81)","v":5},null,null,null,null,null,{"$f":"DP24*100/DP28","v":0.42662116040955633}]
[7,null,null,null,null,"Услуги в целях повышения коммуникативного потенциала получателей социальных услуг",null,null,null,null,null,null,null,null,null,null,null,null,null,null,null,null,null,3,null,null,null,null,null,0,null,null,null,null,null,null,null,null,null,null,null,{"$f":"'доп услуги'!D15","v":0},null,null,null,null,null,null,null,null,null,null,null,null,null,null,null,null,null,null,null,null,null,null,null,null,null,null,null,null,null,{"$f":"SUM('о предоставлении услуг'!G86:J86)","v":0},null,null,null,null,null,{"$error":"#DIV/0!"},null,null,null,null,null,null,null,null,null,null,null,null,null,null,null,null,null,null,null,null,null,null,null,null,null,null,null,null,null,null,null,null,null,null,null,null,null,null,null,null,null,{"$f":"SUM('о предоставлении услуг'!C86:E86)","v":0},null,null,null,null,null,{"$f":"DP25*100/DP28","v":0}]
[8,null,null,null,null,"Срочные услуги",null,null,null,null,null,null,null,null,null,null,null,null,null,null,null,null,null,5,null,null,null,null,null,{"$f":"AV26+BH26+BT26+CF26+CR26+DD26","v":0},null,null,null,null,null,null,null,null,null,null,null,{"$f":"'доп услуги'!D16","v":0},null,null,null,null,null,null,null,null,null,null,null,null,null,null,null,null,null,null,null,null,null,null,null,null,null,null,null,null,null,{"$f":"SUM('о предоставлении услуг'!G93:J93)","v":0},null,null,null,null,null,{"$error":"#DIV/0!"},null,null,null,null,null,null,null,null,null,null,null,null,null,null,null,null,null,null,null,null,null,null,null,null,null,null,null,null,null,null,null,null,null,null,null,null,null,null,null,null,null,{"$f":"SUM('о предоставлении услуг'!C93:E93)","v":0},null,null,null,null,null,{"$f":"DP26*100/DP28","v":0}]
[null,null,null,null,"прочие услуги ",null,null,null,null,null,null,null,null,null,null,null,null,null,null,null,null,null,null,null,null,null,null,null,null,0,null,null,null,null,null,null,null,null,null,null,null,{"$f":"SUM('доп услуги'!D17)","v":0},null,null,null,null,null,null,null,null,null,null,null,null,null,null,null,null,null,null,null,null,null,null,null,null,null,null,null,null,null,null,null,null,null,null,null,null,null,null,null,null,null,null,null,null,null,null,null,null,null,null,null,null,null,null,null,null,null,null,null,null,null,null,null,null,null,null,null,null,null,null,null,null,null,null,null,null,null,{"$f":"'доп услуги'!C17","v":0}]
[null,null,null,null,null,"Всего:",null,null,null,null,null,null,null,null,null,null,null,null,null,null,null,null,null,{"$f":"SUM(X19:AC26)","v":114},null,null,null,null,null,{"$f":"SUM(AD19:AI27)","v":264454},null,null,null,null,null,{"$f":"SUM(AJ19:AO26)","v":130},null,null,null,null,null,{"$f":"SUM(AP19:AU27)","v":11949},null,null,null,null,null,null,null,null,null,null,null,null,null,null,null,null,null,null,null,null,null,null,null,null,null,null,null,null,null,{"$f":"SUM(BT19:BY27)","v":264454},null,null,null,null,null,100,null,null,null,null,null,null,null,null,null,null,null,null,null,null,null,null,null,null,null,null,null,null,null,null,null,null,null,null,null,null,null,null,null,null,null,null,null,null,null,null,null,{"$f":"SUM('о предоставлении услуг'!C94:E94)","v":1172},null,null,null,null,null,100]
[]
[null,"Руководитель уполномоченного органа",null,null,null,null,null,null,null,null,null,null,null,null,null,null,null,null,null,null,null,null,null,null,null,null,null,null,null,null,null,null,null,null,null,null,null,null,null,null,null,null,null,null,null,null,null,null,null,null,null,null,null,null,null,null,null,null,null,null,null,null,null,null,null,null,null,null,null,null,null,null,null,null,null,null,null,null,null,null,null,null,null,null,null,null,null,null,null,null,null,null,null,null,null,null,null,null,null,null,null,null,null,null,null,null,null,null,null,null,null,null,null,null,null,null,null,null,null,"Габдрахманова Е.Б."]
[null,null,null,null,null,null,null,null,null,null,null,null,null,null,null,null,null,null,null,null,null,null,null,null,null,null,null,null,null,null,null,null,null,null,null,null,null,null,null,null,null,null,null,null,null,null,null,null,null,null,null,null,null,null,null,null,null,null,null,null,null,null,null,null,null,null,null,null,null,null,null,null,null,null,null,null,null,null,null,null,null,null,null,null,null,null,null,null,null,null,null,null,null,null,null,null,null,"(подпись)",null,null,null,null,null,null,null,null,null,null,null,null,null,null,null,null,null,null,null,null,null,"(расшифровка подписи)"]
[null,"Исполнитель",null,null,null,null,null,null,null,null,null,null,null,null,null,null,"Кузнецова Гульшат Ансаровна",null,null,null,null,null,null,null,null,null,null,null,null,null,null,null,null,null,null,null,null,null,null,null,null,null,null,null,null,null,null,null,null,null,"(834784) 4-52-35"]
[null,null,null,null,null,null,null,null,null,null,null,null,null,null,null,null,"(Ф.И.О.)",null,null,null,null,null,null,null,null,null,null,null,null,null,null,null,null,null,null,null,null,null,null,null,null,null,null,null,null,null,null,null,null,null,"(контактный телефон)",null,null,null,null,null,null,null,null,null,null,null,null,null,null,null,null,null,null,null,null,null,null,null,null,null,null,null,null,null,null,null,null,null,null,null,null,null,null,null,null,null,null,null,null,null,null,"М.П."]

{"sheet":"Мониторинг 2","index":6,"n_rows":30,"n_cols":160,"rows_kept":30,"cut":false,"hidden":false,"merged":[[23,84,23,90],[23,63,23,69],[29,16,29,47],[29,50,29,81],[23,39,23,46],[23,47,23,54],[23,55,23,62],[28,16,28,47],[23,99,23,106],[28,50,28,81],[23,77,23,83],[23,70,23,76],[27,119,27,150],[26,119,26,150],[23,123,23,129],[23,130,23,136],[23,137,23,143],[26,97,26,116],[23,115,23,122],[23,107,23,114],[23,91,23,98],[27,97,27,116],[21,0,21,14],[21,15,21,22],[21,31,21,38],[21,23,21,30],[21,39,21,46],[23,31,23,38],[23,23,23,30],[23,15,23,22],[20,0,20,14],[20,15,20,22],[20,39,20,46],[22,0,22,14],[22,31,22,38],[23,0,23,14],[22,55,22,62],[22,15,22,22],[22,63,22,69],[22,47,22,54],[22,23,22,30],[22,107,22,114],[22,39,22,46],[21,55,21,62],[21,47,21,54],[21,70,21,76],[21,63,21,69],[22,70,22,76],[21,99,21,106],[21,91,21,98],[21,77,21,83],[21,84,21,90],[22,91,22,98],[22,84,22,90],[22,77,22,83],[22,159,22,166],[22,151,22,158],[22,144,22,150],[22,123,22,129],[21,107,21,114],[22,99,22,106],[23,159,23,166],[23,144,23,150],[23,151,23,158],[22,115,22,122],[22,137,22,143],[22,130,22,136],[19,159,19,166],[19,107,19,114],[19,115,19,122],[21,159,21,166],[21,130,21,136],[21,151,21,158],[21,144,21,150],[21,137,21,143],[20,159,20,166],[20,151,20,158],[19,137,19,143],[19,130,19,136],[21,123,21,129],[21,115,21,122],[18,151,18,158],[18,144,18,150],[18,115,18,122],[20,31,20,38],[20,91,20,98],[18,91,18,98],[19,91,19,98],[18,77,18,83],[19,123,19,129],[20,123,20,129],[18,107,18,114],[19,151,19,158],[20,137,20,143],[20,130,20,136],[20,144,20,150],[19,144,19,150],[20,115,20,122],[20,107,20,114],[20,55,20,62],[20,77,20,83],[20,63,20,69],[18,0,18,14],[19,70,19,76],[17,63,17,69],[17,39,17,46],[17,23,17,30],[20,70,20,76],[18,99,18,106],[19,99,19,106],[19,39,19,46],[20,84,20,90],[19,77,19,83],[20,47,20,54],[18,55,18,62],[17,47,17,54],[17,70,17,76],[19,47,19,54],[19,55,19,62],[19,63,19,69],[20,23,20,30],[20,99,20,106],[17,55,17,62],[18,47,18,54],[18,63,18,69],[18,70,18,76],[17,0,17,14],[16,130,16,136],[16,84,16,90],[19,0,19,14],[17,159,17,166],[17,123,17,129],[17,151,17,158],[18,130,18,136],[18,159,18,166],[17,144,17,150],[17,137,17,143],[18,137,18,143],[18,123,18,129],[17,99,17,106],[18,15,18,22],[18,23,18,30],[18,39,18,46],[19,84,19,90],[17,107,17,114],[17,91,17,98],[17,115,17,122],[17,130,17,136],[17,77,17,83],[17,84,17,90],[16,63,16,69],[16,77,16,83],[19,15,19,22],[19,23,19,30],[18,84,18,90],[19,31,19,38],[18,31,18,38],[17,31,17,38],[17,15,17,22],[14,0,16,14],[14,15,15,22],[16,39,16,46],[16,55,16,62],[16,31,16,38],[14,23,15,30],[15,31,15,46],[16,47,16,54],[16,15,16,22],[16,23,16,30],[16,144,16,150],[0,132,4,166],[6,157,6,166],[10,33,10,133],[8,39,8,109],[16,151,16,158],[14,151,15,166],[16,159,16,166],[15,137,15,150],[16,137,16,143],[14,31,14,150],[15,47,15,62],[16,123,16,129],[15,123,15,136],[16,70,16,76],[11,33,11,133],[16,91,16,98],[15,77,15,90],[15,91,15,106],[16,107,16,114],[16,99,16,106],[15,107,15,122],[15,63,15,76],[16,115,16,122]]}
[null,null,null,null,null,null,null,null,null,null,null,null,null,null,null,null,null,null,null,null,null,null,null,null,null,null,null,null,null,null,null,null,null,null,null,null,null,null,null,null,null,null,null,null,null,null,null,null,null,null,null,null,null,null,null,null,null,null,null,null,null,null,null,null,null,null,null,null,null,null,null,null,null,null,null,null,null,null,null,null,null,null,null,null,null,null,null,null,null,null,null,null,null,null,null,null,null,null,null,null,null,null,null,null,null,null,null,null,null,null,null,null,null,null,null,null,null,null,null,null,null,null,null,null,null,null,null,null,null,null,null,null,"Приложение №2                                                              к таблице  \"Перечень отчетной документации в сфере социального обслуживания граждан пожилого возраста\""]
[]
[]
[]
[]
[]
[null,null,null,null,null,null,null,null,null,null,null,null,null,null,null,null,null,null,null,null,null,null,null,null,null,null,null,null,null,null,null,null,null,null,null,null,null,null,null,null,null,null,null,null,null,null,null,null,null,null,null,null,null,null,null,null,null,null,null,null,null,null,null,null,null,null,null,null,null,null,null,null,null,null,null,null,null,null,null,null,null,null,null,null,null,null,null,null,null,null,null,null,null,null,null,null,null,null,null,null,null,null,null,null,null,null,null,null,null,null,null,null,null,null,null,null,null,null,null,null,null,null,null,null,null,null,null,null,null,null,null,null,null,null,null,null,null,null,null,null,null,null,null,null,null,null,null,null,null,null,null,null,null,null,null,null,null,"Форма 5"]
[]
[null,null,null,null,null,null,null,null,null,null,null,null,null,null,null,null,null,null,null,null,null,null,null,null,null,null,null,null,null,null,null,null,null,null,null,null,null,null,null,"Сведения о получателях социальных услуг за 2017 год."]
[]
[null,null,null,null,null,null,null,null,null,null,null,null,null,null,null,null,null,null,null,null,null,null,null,null,null,null,null,null,null,null,null,null,null,{"$f":"'о расходовании субсидии'!A3","v":"Автономная некоммерческая организация Центр социального обслуживания населения \"Доброе дело\" на территории муниципального района Бирский район Республики Башкортостан и городского поселения город Бирск Республики Башкортостан"}]
[null,null,null,null,null,null,null,null,null,null,null,null,null,null,null,null,null,null,null,null,null,null,null,null,null,null,null,null,null,null,null,null,null,"(наименование уполномоченного органа субъекта Российской Федерации)"]
[]
[null,"Представляется: ежегодно, до 15 февраля года, следующего за отчетным годом"]
["Поставщики социальных\nуслуг",null,null,null,null,null,null,null,null,null,null,null,null,null,null,"Общая численность получателей социальных услуг в субъекте Российской Федерации\n(далее - общая численность), (человек)",null,null,null,null,null,null,null,"Доля от общей численности обратившихся\nза предоставлением социальных услуг (%)",null,null,null,null,null,null,null,"Обстоятельства, в связи с наличием которых гражданин признан нуждающимся в социальном обслуживании",null,null,null,null,null,null,null,null,null,null,null,null,null,null,null,null,null,null,null,null,null,null,null,null,null,null,null,null,null,null,null,null,null,null,null,null,null,null,null,null,null,null,null,null,null,null,null,null,null,null,null,null,null,null,null,null,null,null,null,null,null,null,null,null,null,null,null,null,null,null,null,null,null,null,null,null,null,null,null,null,null,null,null,null,null,null,null,null,null,null,null,null,null,null,null,null,null,null,null,null,null,null,null,null,null,null,null,null,null,null,null,null,null,null,null,null,null,null,null,"Получатели социальных услуг на основе договоров и разработанных индивидуальных программ"]
[null,null,null,null,null,null,null,null,null,null,null,null,null,null,null,null,null,null,null,null,null,null,null,null,null,null,null,null,null,null,null,"полная или частичная утрата способности либо возможности осуществлять самообслуживание, самостоятельно передвигаться, обеспечивать основные жизненные потребности в силу заболевания, травмы, возраста или наличия инвалидности",null,null,null,null,null,null,null,null,null,null,null,null,null,null,null,"наличие в семье инвалида или инвалидов,\nв том числе ребенка-инвалида или детей-инвалидов, нуждающихся в постоянном постороннем уходе",null,null,null,null,null,null,null,null,null,null,null,null,null,null,null,"наличие ребенка или детей (в том числе находящихся под опекой, попечительством), испытывающих трудности в социальной адаптации",null,null,null,null,null,null,null,null,null,null,null,null,null,"отсутствие возможности обеспечения ухода (в том числе временного) за инвалидом, ребенком, детьми, а также отсутствие попечения над ними",null,null,null,null,null,null,null,null,null,null,null,null,null,"наличие внутрисемейного конфликта, в том числе с лицами с наркотической или алкогольной зависимостью, лицами, имеющими пристрастие к азартным играм, лицами, страдающими психическими расстройствами, наличие насилия в семье",null,null,null,null,null,null,null,null,null,null,null,null,null,null,null,"отсутствие определенного места\nжительства, в том числе у лица, не достигшего возраста двадцати трех лет и завершившего пребывание в организации для детей-сирот и детей, оставшихся без попечения родителей",null,null,null,null,null,null,null,null,null,null,null,null,null,null,null,"отсутствие работы\nи средств к существованию",null,null,null,null,null,null,null,null,null,null,null,null,null,"наличие иных обстоятельств, которые нормативными правовыми актами субъекта Российской Федерации признаны ухудшающими или способными ухудшить условия жизнедеятельности граждан"]
[null,null,null,null,null,null,null,null,null,null,null,null,null,null,null,null,null,null,null,null,null,null,null,null,null,null,null,null,null,null,null,"признано нужда-ющимися (человек)",null,null,null,null,null,null,null,"доля от общей численности (%)",null,null,null,null,null,null,null,"признано нужда-ющимися (человек)",null,null,null,null,null,null,null,"доля от общей численности (%)",null,null,null,null,null,null,null,"признано нужда-ющимися (человек)",null,null,null,null,null,null,"доля от общей численности (%)",null,null,null,null,null,null,"признано нужда-ющимися (человек)",null,null,null,null,null,null,"доля от общей численности (%)",null,null,null,null,null,null,"признано нужда-ющимися (человек)",null,null,null,null,null,null,null,"доля от общей численности (%)",null,null,null,null,null,null,null,"признано нужда-ющимися (человек)",null,null,null,null,null,null,null,"доля от общей численности (%)",null,null,null,null,null,null,null,"признано нужда-ющимися (человек)",null,null,null,null,null,null,"доля от общей численности (%)",null,null,null,null,null,null,"признано нужда-ющимися (человек)",null,null,null,null,null,null,"доля от общей численности (%)",null,null,null,null,null,null,"численность (человек)",null,null,null,null,null,null,null,"доля от общей численности (%)"]
[1,null,null,null,null,null,null,null,null,null,null,null,null,null,null,2,null,null,null,null,null,null,null,3,null,null,null,null,null,null,null,4,null,null,null,null,null,null,null,5,null,null,null,null,null,null,null,6,null,null,null,null,null,null,null,7,null,null,null,null,null,null,null,8,null,null,null,null,null,null,9,null,null,null,null,null,null,10,null,null,null,null,null,null,11,null,null,null,null,null,null,12,null,null,null,null,null,null,null,13,null,null,null,null,null,null,null,14,null,null,null,null,null,null,null,15,null,null,null,null,null,null,null,16,null,null,null,null,null,null,17,null,null,null,null,null,null,18,null,null,null,null,null,null,19,null,null,null,null,null,null,20,null,null,null,null,null,null,null,21]
["организации социального обслуживания, находящиеся\nв ведении\nсубъекта Российской Федерации"]
["коммерческие организации социального обслуживания"]
["некоммерческие организации социального обслуживания,\nиз них:",null,null,null,null,null,null,null,null,null,null,null,null,null,null,{"$f":"P22","v":1172},null,null,null,null,null,null,null,{"$f":"X22","v":100},null,null,null,null,null,null,null,{"$f":"AF22","v":1128},null,null,null,null,null,null,null,{"$f":"AN22","v":96},null,null,null,null,null,null,null,{"$f":"AV22","v":1},null,null,null,null,null,null,null,{"$f":"BD22","v":0.1},null,null,null,null,null,null,null,{"$f":"BL22","v":0},null,null,null,null,null,null,{"$f":"BS22","v":0},null,null,null,null,null,null,{"$f":"BZ22","v":43},null,null,null,null,null,null,{"$f":"CG22","v":3.7},null,null,null,null,null,null,{"$f":"CN22","v":0},null,null,null,null,null,null,null,{"$f":"CV22","v":0},null,null,null,null,null,null,null,{"$f":"DD22","v":0},null,null,null,null,null,null,null,{"$f":"DL22","v":0},null,null,null,null,null,null,null,{"$f":"DT22","v":0},null,null,null,null,null,null,{"$f":"EA22","v":0},null,null,null,null,null,null,{"$f":"EH22","v":0},null,null,null,null,null,null,{"$f":"EO22","v":0},null,null,null,null,null,null,{"$f":"'о составе и количестве граждан'!H10","v":1172},null,null,null,null,null,null,null,{"$f":"EV21/P21*100","v":100}]
["социально ориентирован-ные организации социального обслуживания",null,null,null,null,null,null,null,null,null,null,null,null,null,null,1172,null,null,null,null,null,null,null,100,null,null,null,null,null,null,null,1128,null,null,null,null,null,null,null,96,null,null,null,null,null,null,null,1,null,null,null,null,null,null,null,0.1,null,null,null,null,null,null,null,null,null,null,null,null,null,null,null,null,null,null,null,null,null,43,null,null,null,null,null,null,3.7,null,null,null,null,null,null,null,null,null,null,null,null,null,null,null,null,null,null,null,null,null,null,null,null,null,null,null,null,null,null,null,null,null,null,null,null,null,null,null,null,null,null,null,null,null,null,null,null,null,null,null,null,null,null,null,null,null,null,null,null,null,null,null,null,null,null,{"$f":"'о составе и количестве граждан'!H10","v":1172},null,null,null,null,null,null,null,{"$f":"EV22/P22*100","v":100}]
["индивидуальные предприни-матели"]
["Итого",null,null,null,null,null,null,null,null,null,null,null,null,null,null,{"$f":"SUM(P19:W23)","v":2344},null,null,null,null,null,null,null,{"$f":"SUM(X19:AE23)","v":200},null,null,null,null,null,null,null,{"$f":"SUM(AF19:AM23)","v":2256},null,null,null,null,null,null,null,{"$f":"SUM(AN19:AU23)","v":192},null,null,null,null,null,null,null,{"$f":"SUM(AV19:BC23)","v":2},null,null,null,null,null,null,null,{"$f":"SUM(BD19:BK23)","v":0.2},null,null,null,null,null,null,null,{"$f":"SUM(BL19:BR23)","v":0},null,null,null,null,null,null,{"$f":"SUM(BS19:BY23)","v":0},null,null,null,null,null,null,{"$f":"SUM(BZ19:CF23)","v":86},null,null,null,null,null,null,{"$f":"SUM(CG19:CM23)","v":7.4},null,null,null,null,null,null,{"$f":"SUM(CN19:CU23)","v":0},null,null,null,null,null,null,null,{"$f":"SUM(CV19:DC23)","v":0},null,null,null,null,null,null,null,{"$f":"SUM(DD19:DK23)","v":0},null,null,null,null,null,null,null,{"$f":"SUM(DL19:DS21,DL23)","v":0},null,null,null,null,null,null,null,{"$f":"SUM(DT19:DZ21,DT23)","v":0},null,null,null,null,null,null,{"$f":"SUM(EA19:EG21,EA23)","v":0},null,null,null,null,null,null,{"$f":"SUM(EH19:EN21,EH23)","v":0},null,null,null,null,null,null,{"$f":"SUM(EO19:EU21,EO23)","v":0},null,null,null,null,null,null,{"$f":"SUM(EV19:FC21,EV23)","v":1172},null,null,null,null,null,null,null,{"$f":"SUM(FD19:FK21,FD23)","v":100}]
[]
[]
[null,"Руководитель уполномоченного органа",null,null,null,null,null,null,null,null,null,null,null,null,null,null,null,null,null,null,null,null,null,null,null,null,null,null,null,null,null,null,null,null,null,null,null,null,null,null,null,null,null,null,null,null,null,null,null,null,null,null,null,null,null,null,null,null,null,null,null,null,null,null,null,null,null,null,null,null,null,null,null,null,null,null,null,null,null,null,null,null,null,null,null,null,null,null,null,null,null,null,null,null,null,null,null,null,null,null,null,null,null,null,null,null,null,null,null,null,null,null,null,null,null,null,null,null,null,"Габдрахманова Е.Б."]
[null,null,null,null,null,null,null,null,null,null,null,null,null,null,null,null,null,null,null,null,null,null,null,null,null,null,null,null,null,null,null,null,null,null,null,null,null,null,null,null,null,null,null,null,null,null,null,null,null,null,null,null,null,null,null,null,null,null,null,null,null,null,null,null,null,null,null,null,null,null,null,null,null,null,null,null,null,null,null,null,null,null,null,null,null,null,null,null,null,null,null,null,null,null,null,null,null,"(подпись)",null,null,null,null,null,null,null,null,null,null,null,null,null,null,null,null,null,null,null,null,null,"(расшифровка подписи)"]
[null,"Исполнитель",null,null,null,null,null,null,null,null,null,null,null,null,null,null,"Кузнецова Гульшат Ансаровна",null,null,null,null,null,null,null,null,null,null,null,null,null,null,null,null,null,null,null,null,null,null,null,null,null,null,null,null,null,null,null,null,null,"(834784) 4-52-35"]
[null,null,null,null,null,null,null,null,null,null,null,null,null,null,null,null,"(Ф.И.О.)",null,null,null,null,null,null,null,null,null,null,null,null,null,null,null,null,null,null,null,null,null,null,null,null,null,null,null,null,null,null,null,null,null,"(контактный телефон)",null,null,null,null,null,null,null,null,null,null,null,null,null,null,null,null,null,null,null,null,null,null,null,null,null,null,null,null,null,null,null,null,null,null,null,null,null,null,null,null,null,null,null,null,null,null,"М.П."]

{"sheet":"Мониторинг 3","index":7,"n_rows":28,"n_cols":144,"rows_kept":28,"cut":false,"hidden":false,"merged":[[19,135,19,154],[21,0,21,6],[17,0,17,6],[17,8,17,114],[18,0,18,6],[20,0,20,6],[19,0,19,6],[19,8,19,114],[18,8,18,114],[20,8,20,114],[20,135,20,154],[27,16,27,47],[27,50,27,81],[21,8,21,114],[26,16,26,47],[26,50,26,81],[25,97,25,116],[24,97,24,116],[25,119,25,150],[21,115,21,134],[21,135,21,154],[24,119,24,150],[20,115,20,134],[19,115,19,134],[16,0,16,6],[14,7,14,114],[14,0,14,6],[15,0,15,6],[15,8,15,114],[16,8,16,114],[16,115,16,134],[15,115,15,134],[14,135,14,154],[14,115,14,134],[17,135,17,154],[18,115,18,134],[18,135,18,154],[17,115,17,134],[15,135,15,154],[16,135,16,154],[10,27,10,127],[11,27,11,127],[0,121,4,154],[6,143,6,155],[8,0,8,154],[9,64,9,80],[9,81,9,84],[9,85,9,88]]}
[null,null,null,null,null,null,null,null,null,null,null,null,null,null,null,null,null,null,null,null,null,null,null,null,null,null,null,null,null,null,null,null,null,null,null,null,null,null,null,null,null,null,null,null,null,null,null,null,null,null,null,null,null,null,null,null,null,null,null,null,null,null,null,null,null,null,null,null,null,null,null,null,null,null,null,null,null,null,null,null,null,null,null,null,null,null,null,null,null,null,null,null,null,null,null,null,null,null,null,null,null,null,null,null,null,null,null,null,null,null,null,null,null,null,null,null,null,null,null,null,null,"Приложение № 3                                                                 к таблице  \"Перечень отчетной документации в сфере социального обслуживания граждан пожилого возраста\""]
[]
[]
[]
[]
[]
[null,null,null,null,null,null,null,null,null,null,null,null,null,null,null,null,null,null,null,null,null,null,null,null,null,null,null,null,null,null,null,null,null,null,null,null,null,null,null,null,null,null,null,null,null,null,null,null,null,null,null,null,null,null,null,null,null,null,null,null,null,null,null,null,null,null,null,null,null,null,null,null,null,null,null,null,null,null,null,null,null,null,null,null,null,null,null,null,null,null,null,null,null,null,null,null,null,null,null,null,null,null,null,null,null,null,null,null,null,null,null,null,null,null,null,null,null,null,null,null,null,null,null,null,null,null,null,null,null,null,null,null,null,null,null,null,null,null,null,null,null,null,null,"Форма 7"]
[]
["Сведения о предоставлении услуг, не относящихся к социальным услугам (социальное сопровождение)"]
[null,null,null,null,null,null,null,null,null,null,null,null,null,null,null,null,null,null,null,null,null,null,null,null,null,null,null,null,null,null,null,null,null,null,null,null,null,null,null,null,null,null,null,null,null,null,null,null,null,null,null,null,null,null,null,null,null,null,null,null,null,null,null,"за ","12 месяцев",null,null,null,null,null,null,null,null,null,null,null,null,null,null,null,null,20,null,null,null,"17",null,null,null," года"]
[null,null,null,null,null,null,null,null,null,null,null,null,null,null,null,null,null,null,null,null,null,null,null,null,null,null,null,{"$f":"'о расходовании субсидии'!A3","v":"Автономная некоммерческая организация Центр социального обслуживания населения \"Доброе дело\" на территории муниципального района Бирский район Республики Башкортостан и городского поселения город Бирск Республики Башкортостан"}]
[null,null,null,null,null,null,null,null,null,null,null,null,null,null,null,null,null,null,null,null,null,null,null,null,null,null,null,"(наименование уполномоченного органа субъекта Российской Федерации)"]
[]
[null,"Представляется: ежемесячно, до 15 числа месяца, следующего за отчетным периодом"]
["№\nп/п",null,null,null,null,null,null,"Показатели",null,null,null,null,null,null,null,null,null,null,null,null,null,null,null,null,null,null,null,null,null,null,null,null,null,null,null,null,null,null,null,null,null,null,null,null,null,null,null,null,null,null,null,null,null,null,null,null,null,null,null,null,null,null,null,null,null,null,null,null,null,null,null,null,null,null,null,null,null,null,null,null,null,null,null,null,null,null,null,null,null,null,null,null,null,null,null,null,null,null,null,null,null,null,null,null,null,null,null,null,null,null,null,null,null,null,null,"Численность\n(человек)",null,null,null,null,null,null,null,null,null,null,null,null,null,null,null,null,null,null,null,"Доля (%)"]
["1",null,null,null,null,null,null,null,"Граждане, которым оказано содействие в предоставлении помощи, не относящейся к социальным услугам (социальное сопровождение), всего",null,null,null,null,null,null,null,null,null,null,null,null,null,null,null,null,null,null,null,null,null,null,null,null,null,null,null,null,null,null,null,null,null,null,null,null,null,null,null,null,null,null,null,null,null,null,null,null,null,null,null,null,null,null,null,null,null,null,null,null,null,null,null,null,null,null,null,null,null,null,null,null,null,null,null,null,null,null,null,null,null,null,null,null,null,null,null,null,null,null,null,null,null,null,null,null,null,null,null,null,null,null,null,null,null,null,null,null,null,null,null,null,null,null,null,null,null,null,null,null,null,null,null,null,null,null,"-"]
[null,null,null,null,null,null,null,null,"в том числе:\nмедицинской",null,null,null,null,null,null,null,null,null,null,null,null,null,null,null,null,null,null,null,null,null,null,null,null,null,null,null,null,null,null,null,null,null,null,null,null,null,null,null,null,null,null,null,null,null,null,null,null,null,null,null,null,null,null,null,null,null,null,null,null,null,null,null,null,null,null,null,null,null,null,null,null,null,null,null,null,null,null,null,null,null,null,null,null,null,null,null,null,null,null,null,null,null,null,null,null,null,null,null,null,null,null,null,null,null,null,null,null,null,null,null,null,null,null,null,null,null,null,null,null,null,null,null,null,null,null,{"$f":"DL17*100/DL16","v":{"$error":"#DIV/0!"}}]
[null,null,null,null,null,null,null,null,"психологической",null,null,null,null,null,null,null,null,null,null,null,null,null,null,null,null,null,null,null,null,null,null,null,null,null,null,null,null,null,null,null,null,null,null,null,null,null,null,null,null,null,null,null,null,null,null,null,null,null,null,null,null,null,null,null,null,null,null,null,null,null,null,null,null,null,null,null,null,null,null,null,null,null,null,null,null,null,null,null,null,null,null,null,null,null,null,null,null,null,null,null,null,null,null,null,null,null,null,null,null,null,null,null,null,null,null,null,null,null,null,null,null,null,null,null,null,null,null,null,null,null,null,null,null,null,null,{"$f":"DL18*100/DL16","v":{"$error":"#DIV/0!"}}]
[null,null,null,null,null,null,null,null,"педагогической",null,null,null,null,null,null,null,null,null,null,null,null,null,null,null,null,null,null,null,null,null,null,null,null,null,null,null,null,null,null,null,null,null,null,null,null,null,null,null,null,null,null,null,null,null,null,null,null,null,null,null,null,null,null,null,null,null,null,null,null,null,null,null,null,null,null,null,null,null,null,null,null,null,null,null,null,null,null,null,null,null,null,null,null,null,null,null,null,null,null,null,null,null,null,null,null,null,null,null,null,null,null,null,null,null,null,null,null,null,null,null,null,null,null,null,null,null,null,null,null,null,null,null,null,null,null,{"$f":"DL19*100/DL16","v":{"$error":"#DIV/0!"}}]
[null,null,null,null,null,null,null,null,"юридической",null,null,null,null,null,null,null,null,null,null,null,null,null,null,null,null,null,null,null,null,null,null,null,null,null,null,null,null,null,null,null,null,null,null,null,null,null,null,null,null,null,null,null,null,null,null,null,null,null,null,null,null,null,null,null,null,null,null,null,null,null,null,null,null,null,null,null,null,null,null,null,null,null,null,null,null,null,null,null,null,null,null,null,null,null,null,null,null,null,null,null,null,null,null,null,null,null,null,null,null,null,null,null,null,null,null,null,null,null,null,null,null,null,null,null,null,null,null,null,null,null,null,null,null,null,null,{"$f":"DL20*100/DL16","v":{"$error":"#DIV/0!"}}]
[null,null,null,null,null,null,null,null,"социальной",null,null,null,null,null,null,null,null,null,null,null,null,null,null,null,null,null,null,null,null,null,null,null,null,null,null,null,null,null,null,null,null,null,null,null,null,null,null,null,null,null,null,null,null,null,null,null,null,null,null,null,null,null,null,null,null,null,null,null,null,null,null,null,null,null,null,null,null,null,null,null,null,null,null,null,null,null,null,null,null,null,null,null,null,null,null,null,null,null,null,null,null,null,null,null,null,null,null,null,null,null,null,null,null,null,null,null,null,null,null,null,null,null,null,null,null,null,null,null,null,null,null,null,null,null,null,{"$f":"DL21*100/DL16","v":{"$error":"#DIV/0!"}}]
[null,null,null,null,null,null,null,null,"иной помощи (указать наименование помощи)",null,null,null,null,null,null,null,null,null,null,null,null,null,null,null,null,null,null,null,null,null,null,null,null,null,null,null,null,null,null,null,null,null,null,null,null,null,null,null,null,null,null,null,null,null,null,null,null,null,null,null,null,null,null,null,null,null,null,null,null,null,null,null,null,null,null,null,null,null,null,null,null,null,null,null,null,null,null,null,null,null,null,null,null,null,null,null,null,null,null,null,null,null,null,null,null,null,null,null,null,null,null,null,null,null,null,null,null,null,null,null,null,null,null,null,null,null,null,null,null,null,null,null,null,null,null,{"$f":"DL22*100/DL16","v":{"$error":"#DIV/0!"}}]
[]
[]
[null,"Руководитель уполномоченного органа",null,null,null,null,null,null,null,null,null,null,null,null,null,null,null,null,null,null,null,null,null,null,null,null,null,null,null,null,null,null,null,null,null,null,null,null,null,null,null,null,null,null,null,null,null,null,null,null,null,null,null,null,null,null,null,null,null,null,null,null,null,null,null,null,null,null,null,null,null,null,null,null,null,null,null,null,null,null,null,null,null,null,null,null,null,null,null,null,null,null,null,null,null,null,null,null,null,null,null,null,null,null,null,null,null,null,null,null,null,null,null,null,null,null,null,null,null,"Габдрахманова Е.Б."]
[null,null,null,null,null,null,null,null,null,null,null,null,null,null,null,null,null,null,null,null,null,null,null,null,null,null,null,null,null,null,null,null,null,null,null,null,null,null,null,null,null,null,null,null,null,null,null,null,null,null,null,null,null,null,null,null,null,null,null,null,null,null,null,null,null,null,null,null,null,null,null,null,null,null,null,null,null,null,null,null,null,null,null,null,null,null,null,null,null,null,null,null,null,null,null,null,null,"(подпись)",null,null,null,null,null,null,null,null,null,null,null,null,null,null,null,null,null,null,null,null,null,"(расшифровка подписи)"]
[null,"Исполнитель",null,null,null,null,null,null,null,null,null,null,null,null,null,null,"Кузнецова Гульшат Ансаровна",null,null,null,null,null,null,null,null,null,null,null,null,null,null,null,null,null,null,null,null,null,null,null,null,null,null,null,null,null,null,null,null,null,"(834784) 4-52-35"]
[null,null,null,null,null,null,null,null,null,null,null,null,null,null,null,null,"(Ф.И.О.)",null,null,null,null,null,null,null,null,null,null,null,null,null,null,null,null,null,null,null,null,null,null,null,null,null,null,null,null,null,null,null,null,null,"(контактный телефон)",null,null,null,null,null,null,null,null,null,null,null,null,null,null,null,null,null,null,null,null,null,null,null,null,null,null,null,null,null,null,null,null,null,null,null,null,null,null,null,null,null,null,null,null,null,null,"М.П."]

{"sheet":"6 собес","index":8,"n_rows":325,"n_cols":17,"rows_kept":325,"cut":false,"hidden":false,"merged":[[281,13,282,13],[281,8,282,8],[281,9,282,9],[280,3,280,16],[281,16,282,16],[281,15,282,15],[281,14,282,14],[281,12,282,12],[281,3,282,3],[281,10,282,10],[303,9,304,9],[303,7,303,8],[218,3,219,3],[217,0,219,0],[280,2,282,2],[302,3,302,9],[278,0,278,2],[245,0,245,2],[281,5,282,5],[281,6,282,6],[303,3,304,3],[303,5,304,5],[303,6,304,6],[302,0,304,0],[302,1,304,1],[217,2,219,2],[300,0,300,3],[280,0,282,0],[302,2,304,2],[280,1,282,1],[158,1,160,1],[158,2,160,2],[158,3,158,6],[215,0,215,6],[217,1,219,1],[217,3,217,6],[218,4,219,4],[218,5,218,6],[126,0,128,0],[126,1,128,1],[127,3,128,3],[127,5,128,5],[126,2,128,2],[156,0,156,6],[159,4,160,4],[158,0,160,0],[159,3,160,3],[159,5,159,6],[64,0,64,14],[67,14,68,14],[67,11,68,11],[124,0,124,14],[67,10,68,10],[66,1,68,1],[67,9,68,9],[66,3,66,14],[67,12,68,12],[66,0,68,0],[67,13,68,13],[66,2,68,2],[67,3,68,3],[67,5,68,5],[67,8,68,8],[67,6,68,6],[127,14,128,14],[126,3,126,14],[127,9,128,9],[127,13,128,13],[127,12,128,12],[127,6,128,6],[127,11,128,11],[127,10,128,10],[127,8,128,8],[39,0,41,0],[40,5,41,5],[9,1,11,1],[39,2,41,2],[37,0,37,6],[9,0,11,0],[10,3,11,3],[39,1,41,1],[9,3,9,6],[40,6,41,6],[10,5,11,5],[9,2,11,2],[40,3,41,3],[39,3,39,6],[1,0,1,6],[2,0,2,6],[3,0,3,6],[4,1,4,3],[10,6,11,6],[7,0,7,6]]}
[]
[]
["СВЕДЕНИЯ О ПОЛУСТАЦИОНАРНЫХ ОРГАНИЗАЦИЯХ СОЦИАЛЬНОГО ОБСЛУЖИВАНИЯ, ОРГАНИЗАЦИЯХ, ОСУЩЕСТВЛЯЮЩИХ СОЦИАЛЬНОЕ ОБСЛУЖИВАНИЕ В ФОРМЕ СОЦИАЛЬНОГО ОБСЛУЖИВАНИЯ НА ДОМУ  на 1 января 2018 г."]
[{"$f":"'о расходовании субсидии'!A3:G3","v":"Автономная некоммерческая организация Центр социального обслуживания населения \"Доброе дело\" на территории муниципального района Бирский район Республики Башкортостан и городского поселения город Бирск Республики Башкортостан"}]
[null,"(регион)"]
[]
[]
["Раздел 1. Сведения об организациях, осуществляющих социальное обслуживание в форме социального обслуживания на дому"]
[]
[null,"№ строки","Всего организаций, осуществляющих социальное обслуживание в форме социального обслуживания на дому (всего)  (гр. 4+6+7)","в том числе"]
[null,null,null,"специализированные службы социально-медицинского обслуживания","в том числе","центры социальной помощи","иные организации, осуществляющие социальное обслуживание в форме социального обслуживания на дому"]
[null,null,null,null,"для граждан пожилого возраста и инвалидов"]
[1,2,3,4,5,6,7]
["Число организаций, единиц",1,1,null,null,1]
["Число оказанных услуг (всего), единиц  (сумма стр. 3-10)",2,276403,{"$f":"SUM(D17:D24)","v":0},{"$f":"SUM(E17:E24)","v":0},276403,{"$f":"SUM(G17:G24)","v":0}]
["        из них:"]
["социально-бытовые",3,170204,null,null,170204]
["социально-медицинские",4,{"$f":"D18+F18+G18","v":18668},null,null,18668]
["социально-психологические",5,87509,null,null,87509]
["социально-педагогические",6,0]
[" социально-трудовые",7,0]
["социально-правовые",8,22,null,null,22]
["услуги в целях повышения коммуникативного потенциала получателей социальных услуг",9,0]
["срочные услуги",10,0]
["Численность получателей социальных услуг (всего), человек (стр. 12+13)",11,1172,{"$f":"D27+D28","v":0},{"$f":"E27+E28","v":0},1172,{"$f":"G27+G28","v":0}]
["        из них:"]
[" мужчин ",12,271,null,null,271]
[" женщин ",13,901,null,null,901]
["Из стр. 11:"]
["детей-инвалидов ",14,1,null,null,1]
["Из стр. 11:"]
["молодых инвалидов в возрасте 18-35 лет ",15,{"$f":"D32+F32+G32","v":0}]
["Из стр. 11: численность участников и инвалидов ВОВ",16,6,null,null,6]
["Из стр. 11: обслуживаемых в сельской местности",17,716,null,null,716]
["Численность граждан, состоящих на очереди для помещения в организации, осуществляющие социальное обслуживание на дому, человек",18,{"$f":"D35+F35+G35","v":0}]
[]
[]
["Раздел 2. Сведения об организациях, осуществляющих социальное обслуживание в форме социального обслуживания на дому, основанных на иных формах собственности"]
[]
[null,"№ строки","Всего организаций, осуществляющих социальное обслуживание в форме социального обслуживания на дому (всего)  (гр. 4+6+7)","в том числе"]
[null,null,null,"специализированные службы социально-медицинского обслуживания","в том числе","центры социальной помощи","иные организации, осуществляющие социальное обслуживание в форме социального обслуживания на дому"]
[null,null,null,null,"для граждан пожилого возраста и инвалидов"]
[1,2,3,4,5,6,7]
["Всего организаций, осуществляющих социальное обслуживание в форме социального обслуживания на дому (всего)  (гр. 4+6+7)",1,{"$f":"D44+F44+G44","v":0}]
["Число оказанных услуг (всего), единиц (сумма стр. 3-10)",2,{"$f":"D45+F45+G45","v":276403},{"$f":"SUM(D47:D54)","v":0},{"$f":"SUM(E47:E54)","v":0},{"$f":"SUM(F47:F54)","v":276403},{"$f":"SUM(G47:G54)","v":0}]
["        из них:"]
["социально-бытовые",3,170204,null,null,{"$f":"'о деятельности'!C14","v":170204}]
["социально-медицинские",4,18668,null,null,{"$f":"'о деятельности'!C15","v":18668}]
["социально-психологические",5,87509,null,null,{"$f":"'о деятельности'!C16","v":87509}]
["социально-педагогические",6,0,null,null,{"$f":"'о деятельности'!C17","v":0}]
["социально-трудовые",7,0,null,null,{"$f":"'о деятельности'!C18","v":0}]
["социально-правовые",8,22,null,null,{"$f":"'о деятельности'!C19","v":22}]
["услуги в целях повышения коммуникативного потенциала получателей социальных услуг",9,0,null,null,{"$f":"'о деятельности'!C20","v":0}]
["срочные услуги",10,0,null,null,{"$f":"'о деятельности'!C21","v":0}]
["Численность получателей социальных услуг (всего), человек (стр. 12+13)",11,1172,{"$f":"D57+D58","v":0},{"$f":"E57+E58","v":0},{"$f":"F57+F58","v":1172},{"$f":"G57+G58","v":0}]
["        в том числе:                                                           "]
["мужчин ",12,271,null,null,271]
["женщин ",13,901,null,null,901]
["Из стр. 11: детей-инвалидов ",14,1,null,null,1]
["Из стр. 11: молодых инвалидов в возрасте 18-35 лет ",15,0]
["Численность работников, человек",16,79,null,null,79]
[]
[]
[]
["Раздел 3. Сведения об организациях, осуществляющих полустационарное социальное обслуживание"]
[]
["Наименование","№ строки","Всего организаций, осуществляю-щих полустацио-нарное социальное обслуживание (всего)\n (гр. 4+6+7+9+ 10+11+12+13+14+15) \n","в том числе"]
[null,null,null,"социаль-но-реабили-тацион-ный центр","в том числе:","центр помощи детям, остав-шимся без попече-ния родите-лей","реаби-литаци-онный центр","в том числе:","кризис-ный центр помощи женщи-нам","центр психолого-педагоги-ческой помощи населению","социаль-ной адаптации (помощи), в том числе: для лиц без опреде-ленного места житель-ства и занятий","дом ночного пребыва-ния","социаль-ный приют","социаль-ная гостини-ца","иные организа-ции, осуществ-ляющие полустаци-онарное социальное обслужи-вание"]
[null,null,null,null,"для несовер-шенно-летних",null,null,"для детей и под-ростков с ограни-ченными возмож-ностями"]
[1,2,3,4,5,6,7,8,9,10,11,12,13,14,15]
["Число организаций, единиц",1,{"$f":"D71+F71+G71+I71+J71+K71+L71+M71+N71+O71","v":0}]
["Число отделений (всего), единиц (стр. 3+4+5):",2,{"$f":"D72+F72+G72+I72+J72+K72+L72+M72+N72+O72","v":0},{"$f":"SUM(D74:D76)","v":0},{"$f":"SUM(E74:E76)","v":0},0,0,0,0,0,0,0,0,0,0]
["      из них:"]
["временного проживания",3,0]
["дневного пребывания",4,0]
["иных",5,0]
["Число оказанных услуг (всего), единиц (сумма стр. 7-14)",6,0,{"$f":"SUM(D79:D86)","v":0},{"$f":"SUM(E79:E86)","v":0},0,0,0,0,0,0,0,0,0,0]
["      из них:"]
["   социально-бытовые",7,0]
["социально-медицинские",8,0]
["социально-психологические",9,0]
["социально-педагогические",10,0]
["социально-трудовые",11,0]
["   социально-правовые",12,0]
["   услуги в целях повышения коммуникативного потенциала получателей социальных услуг",13,0]
["   срочные услуги",14,0]
["Численность получателей социальных услуг (всего), человек (стр. 16+29)",15,0,{"$f":"D89+D103","v":0},{"$f":"E89+E103","v":0},0,0,0,0,0,0,0,0,0,0]
["      в том числе:"]
["мужчин – всего (сумма стр. 17-28)",16,0,{"$f":"SUM(D91:D102)","v":0},{"$f":"SUM(E91:E102)","v":0},0,0,0,0,0,0,0,0,0,0]
["в том числе в  возрасте, лет:"]
["до 16",17,0]
["16-17",18,0]
["18-22",19,0]
["23-25",20,0]
["26-30",21,0]
["31-35",22,0]
["36-45",23,0]
["46-59",24,0]
["60-74",25,0]
["75-79",26,0]
["80-89",27,0]
["90 и более",28,0]
["женщин – всего (сумма стр. 30-41)",29,0,{"$f":"SUM(D105:D116)","v":0},{"$f":"SUM(E105:E116)","v":0},0,0,0,0,0,0,0,0,0,0]
["в том числе в возрасте, лет:"]
["до 16 ",30,0]
["16-17",31,0]
["18-22",32,0]
["23-25",33,0]
["26-30",34,0]
["31-35",35,0]
["36-45",36,0]
["46-59",37,0]
["60-74",38,0]
["75-79",39,0]
["80-89",40,0]
["90 и более",41,0]
["Из стр. 15: численность детей-инвалидов ",42,0]
["Из стр. 15 численность молодых инвалидов ",43,0]
["Из стр. 15: численность участников и инвалидов ВОВ",44,0]
["Из стр. 15: обслуживаемых в сельской местности",45,0]
["Численность граждан, состоящих на очереди для помещения в организации осуществляющие полустационар-ное социальное обслуживание, человек",46,0]
[]
[]
[]
["Раздел 4. Сведения об организациях, осуществляющих полустационарное социальное обслуживание, основанных на иных формах собственности"]
[]
["Наименование","№ стро-ки","Всего организаций, осуществляю-щих полустацио-нарное социальное обслуживание (всего)\n (гр. 4+6+7+9+ 10+11+12+13+14+15)\n","в том числе"]
[null,null,null,"социаль-но-реабили-тацион-ный центр","в том числе:","центр помощи детям, остав-шимся без попече-ния родите-лей","реаби-литаци-онный центр","в том числе:","кризис-ный центр помощи женщи-нам","центр психолого-педагоги-ческой помощи населению","социаль-ной адаптации (помощи), в том числе: для лиц без опреде-ленного места житель-ства и занятий","дом ночного пребыва-ния","социаль-ный приют","социаль-ная гостини-ца","иные организа-ции, осуществ-ляющие полустаци-онарное социальное обслужи-вание"]
[null,null,null,null,"для несовер-шенно-летних",null,null,"для детей и под-ростков с ограни-ченными возмож-ностями"]
[1,2,3,4,5,6,7,8,9,10,11,12,13,14,15]
["Число организаций, единиц",1,{"$f":"D131+F131+G131+I131+J131+K131+L131+M131+N131+O131","v":0}]
["Число отделений (всего), единиц (стр. 3+4+5):",2,{"$f":"D132+F132+G132+I132+J132+K132+L132+M132+N132+O132","v":0},{"$f":"SUM(D134:D136)","v":0},{"$f":"SUM(E134:E136)","v":0},0,0,0,0,0,0,0,0,0,0]
["      из них:"]
["временного проживания",3,0]
["дневного пребывания",4,0]
["иных",5,0]
["Численность работников, человек",6,0]
["Число оказанных услуг (всего), единиц (сумма стр. 8-15)",7,0,{"$f":"SUM(D140:D147)","v":0},{"$f":"SUM(E140:E147)","v":0},0,0,0,0,0,0,0,0,0,0]
["      из них:"]
["   социально-бытовые",8,0]
["социально-медицинские",9,0]
["социально-психологические",10,0]
["социально-педагогические",11,0]
["социально-трудовые",12,0]
["   социально-правовые",13,0]
["   услуги в целях повышения коммуникативного потенциала получателей социальных услуг",14,0]
["   срочные услуги",15,0]
["Численность получателей социальных услуг (всего), человек (стр. 17+18)",16,0,{"$f":"D150+D151","v":0},{"$f":"E150+E151","v":0},0,0,0,0,0,0,0,0,0,0]
["      в том числе:"]
["мужчин ",17,0]
["женщин",18,0]
["Из стр. 16  численность детей-инвалидов ",19,0]
["Из стр. 16 численность молодых инвалидов в возрасте 18-35 лет",20,0]
[]
[]
[]
["Раздел 5. Сведения о предоставлении социальных услуг в форме социального обслуживания на дому «Центрами социального обслуживания населения» и «Центрами социального обслуживания, в том числе: комплексными и для граждан пожилого возраста и инвалидов»"]
[]
["Наименование","№ строки","Всего организаций,  (гр. 4+5)","в том числе:"]
[null,null,null,"центр социального обслуживания населения","центр социального обслуживания","в том числе:"]
[null,null,null,null,null,"комплексный","для граждан пожилого возраста и инвалидов"]
[1,2,3,4,5,6,7]
["Число организаций, единиц",1,{"$f":"D163+E163","v":0},null,{"$f":"F163+G163","v":0}]
["Число оказанных услуг (всего), единиц (сумма стр. 3-10)",2,{"$f":"D164+E164","v":0},null,{"$f":"F164+G164","v":0}]
["        из них:"]
["социально-бытовые",3,0,null,0]
["социально-медицинские",4,0,null,0]
["социально-психологические",5,0,null,0]
["социально-педагогические",6,0,null,0]
["социально-трудовые",7,0,null,0]
["социально-правовые",8,0,null,0]
["услуги в целях повышения коммуникативного потенциала получателей социальных услуг",9,0,null,0]
["срочные услуги",10,0,null,0]
["Численность получателей социальных услуг (всего), человек (стр. 12+25)",11,0,{"$f":"D175+D189","v":0},{"$f":"E175+E189","v":0},{"$f":"F175+F189","v":0},{"$f":"G175+G189","v":0}]
["в том числе: мужчин – всего (сумма стр. 13-24)",12,0,{"$f":"SUM(D177:D188)","v":0},{"$f":"SUM(E177:E188)","v":0},{"$f":"SUM(F177:F188)","v":0},{"$f":"SUM(G185:G188)","v":0}]
["в том числе в возрасте, лет:"]
["   до 16",13,0,null,{"$f":"F177","v":0},null,"X"]
["   16-17",14,0,null,{"$f":"F178","v":0},null,"X"]
["   18-22",15,0,null,0,null,"X"]
["   23-25",16,0,null,0,null,"X"]
["   26-30",17,0,null,0,null,"X"]
["   31-35",18,0,null,0,null,"X"]
["   36-45",19,0,null,0,null,"X"]
["   46-59",20,0,null,0,null,"X"]
["   60-74",21,0,null,{"$f":"F185+G185","v":0}]
["   75-79",22,0,null,{"$f":"F186+G186","v":0}]
["   80-89",23,0,null,{"$f":"F187+G187","v":0}]
["   90 и более",24,0,null,{"$f":"F188+G188","v":0}]
["женщин – всего (сумма стр. 26-37)",25,0,{"$f":"SUM(D191:D202)","v":0},{"$f":"SUM(E191:E202)","v":0},{"$f":"SUM(F191:F202)","v":0},{"$f":"SUM(G191:G202)","v":0}]
["в том числе в возрасте, лет:"]
["   до 16 ",26,0,null,{"$f":"F191","v":0},null,"X"]
["   16-17",27,0,null,{"$f":"F192","v":0},null,"X"]
["   18-22",28,0,null,0,null,"X"]
["   23-25",29,0,null,0,null,"X"]
["   26-30",30,0,null,0,null,"X"]
["   31-35",31,0,null,0,null,"X"]
["   36-45",32,0,null,0,null,"X"]
["   46-59",33,0,null,0,null,"X"]
["   60-74",34,0,null,{"$f":"F199+G199","v":0}]
["   75-79",35,0,null,0]
["   80-89",36,0,null,0]
["   90 и более",37,0,null,0]
["Из стр. 11: численность детей-инвалидов ",38,0,null,0]
["Из стр. 11 численность молодых инвалидов ",39,0,null,0]
["Из стр. 11: численность участников и инвалидов ВОВ",40,0,null,0]
["Из стр. 11: обслуживаемых в сельской местности",41,0,null,0]
["Численность граждан, состоящих на очереди, человек",42,0,null,0]
["Число отделений (всего), единиц (стр. 44+45+46+47):",43,0,{"$f":"SUM(D210:D213)","v":0},{"$f":"SUM(E210:E213)","v":0},{"$f":"SUM(F210:F213)","v":0},{"$f":"SUM(G210:G213)","v":0}]
["        из них:"]
["временного проживания",44,0,null,{"$f":"F210+G210","v":0}]
["дневного пребывания",45,0,null,{"$f":"F211+G211","v":0}]
["на дому",46,0,null,{"$f":"F212+G212","v":0}]
["иных",47,0,null,{"$f":"F213+G213","v":0}]
[]
[]
["       Раздел 6. Сведения о предоставлении социальных услуг в форме социального обслуживания на дому \"Центрами социального обслуживания  населения\" и \"Центрами социального  обслуживания, в том числе: комплексными и для граждан пожилого возраста и инвалидов\" , основанными на иных формах собственности"]
[]
["Наименование","№ строки","Всего организаций,  (гр. 4+5)","в том числе:"]
[null,null,null,"центр социального обслуживания населения","центр социального обслуживания","в том числе:"]
[null,null,null,null,null,"комплексный","для граждан пожилого возраста и инвалидов"]
[1,2,3,4,5,6,7]
["Число организаций, единиц",1,{"$f":"D222+E222","v":0},null,{"$f":"F222+G222","v":0}]
["Число оказанных услуг (всего), единиц (сумма стр. 3 - 10)",2,{"$f":"D223+E223","v":276403},{"$f":"SUM(D225:D232)","v":276403},0,{"$f":"SUM(F225:F232)","v":0},{"$f":"SUM(G225:G232)","v":0}]
["из них"]
["социально-бытовые",3,170204,{"$f":"'о деятельности'!C14","v":170204},0]
["социально-медицинские",4,18668,{"$f":"'о деятельности'!C15","v":18668},0]
["социально-психологические",5,87509,{"$f":"'о деятельности'!C16","v":87509},0]
["социально-педагогические",6,0,{"$f":"'о деятельности'!C17","v":0},0]
["социально-трудовые",7,0,{"$f":"'о деятельности'!C18","v":0},0]
["социально-правовые",8,22,{"$f":"'о деятельности'!C19","v":22},0]
["услуги в целях повышения коммуникативного потенциала получателей социальных услуг",9,0,{"$f":"'о деятельности'!C20","v":0},0]
["срочные услуги",10,0,{"$f":"'о деятельности'!C21","v":0},0]
["Численность получателей социальных услуг (всего), человек (стр. 12 + 13)",11,0,{"$f":"D235+D236","v":0},0,{"$f":"F235+F236","v":0},{"$f":"G235+G236","v":0}]
["в том числе"]
["мужчин",12,0,null,0]
["женщин",13,0,null,0]
["Число отделений (всего), единиц (стр. 15 + 16 + 17 + 18)",14,0,{"$f":"SUM(D239:D242)","v":0},0,{"$f":"SUM(F239:F242)","v":0},{"$f":"SUM(G239:G242)","v":0}]
["из них"]
["временного проживания",15,0,null,0]
["дневного пребывания",16,0,null,0]
["на дому",17,0,null,0]
["иных",18,0,null,0]
[]
[]
["Руководитель организации",null,"/Габдрахманова Е.Б./"]
["           Раздел 7. Сведения о предоставлении социальных услуг   \"мобильными бригадами\""]
[]
["Наименование","N строки","Величина показателя"]
[1,2,3]
["Число бригад, единиц",1]
["Число единиц транспорта, в том числе автомобильного, единиц",2]
["Общая численность работников, человек (сумма стр. 4 - 10)",3,{"$f":"SUM(C253:C260)","v":0}]
["из них",4]
["специалист по социальной работе",4]
["социальный работник",5]
["специалист по работе с семьей",6]
["специалист по реабилитационной работе в социальной сфере",7]
["психолог в социальной сфере",8]
["социальный педагог",9]
["иные должности",10]
["Численность получателей социальных услуг (всего), человек (гр. 12 + 13)",11,{"$f":"C263+C264","v":0}]
["в том числе"]
["мужчин",12]
["женщин",13]
["Из стр 11 детей-инвалидов",14]
["Из стр 11 молодых инвалидов в возрасте 18 - 35 лет",15]
["Число оказанных услуг (всего), единиц (сумма стр. 17 - 24)",16,{"$f":"SUM(C269:C276)","v":0}]
["из них"]
["социально-бытовые",17]
["социально-медицинские",18]
["социально-психологические",19]
["социально-педагогические",20]
["социально-трудовые",21]
["социально-правовые",22]
["услуги в целях повышения коммуникативного потенциала получателей социальных услуг",23]
["срочные услуги",24]
[]
[]
["    Раздел 8. Среднесписочная численность специалистов полустационарных организаций социального обслуживания"]
[]
["Наименование","№ строки","Всего специалистов организаций, осуществляющих полустационарное социальное обслуживание (всего) (гр. 4 + 6 + 7 + 9 + 10 + 11 + 13 + 14 + 15 + 16 + 17)","в том числе"]
[null,null,null,"социально-реабилитационный центр","в том числе","центр помощи детям, оставшимся без попечения родителей","реабилитационный центр","в том числе:","кризисный центр помощи женщинам","центр психолого-педагогической помощи населению","центр социальной адаптации (помощи)","в том числе","дом ночного пребывания","социальный приют","социальная гостиница","центр социального обслуживания населения","иные организации, осуществляющие полустационарное социальное обслуживание"]
[null,null,null,null,"для несовершеннолетних",null,null,"для детей и подростков с ограниченными возможностями",null,null,null,"для лиц без определенного места жительства и занятий"]
[1,2,3,4,5,6,7,8,9,10,11,12,13,14,15,16,17]
["Общая численность специалистов, человек (сумма стр. 2 - 13)",1,{"$f":"SUM(C287:C298)","v":0},{"$f":"SUM(D287:D298)","v":0},0,0,0,0,0,0,0,0,0,0,0,0,0]
["из них"]
["специалист по социальной работе",2,{"$f":"D287+F287+G287+I287+J287+K287+M287+N287+O287+P287+Q287","v":0}]
["социальный работник",3,{"$f":"D288+F288+G288+I288+J288+K288+M288+N288+O288+P288+Q288","v":0}]
["воспитатель",4,0]
["инструктор по труду",5,0]
["логопед",6,0]
["музыкальный руководитель",7,0]
["педагог-организатор",8,0]
["педагог-психолог",9,0]
["социальный педагог",10,0]
["педагог-дефектолог",11,0]
["учитель-логопед",12,0]
["иные должности",13,0]
[]
[]
["            Раздел 9. Среднесписочная численность специалистов  организаций, осуществляющих социальное обслуживание в форме   социального обслуживания на дому"]
["                   "]
["Наименование","N строки","Всего специалистов организаций, осуществляющих социальное обслуживание в форме социального обслуживания на дому (всего) (гр. 4 + 6 + 7 + 10)","в том числе"]
[null,null,null,"специализированные службы социально-медицинского обслуживания","в том числе","центры социальной помощи","центр социального обслуживания","в том числе",null,"иные организации, осуществляющие социальное обслуживание в форме социального обслуживания на дому"]
[null,null,null,null,"для граждан пожилого возраста и инвалидов",null,null,"комплексный","для граждан пожилого возраста и инвалидов"]
[1,2,3,4,5,6,7,8,9,10]
["Общая численность специалистов, человек (сумма стр. 2 - 13)",1,{"$f":"SUM(C309:C320)","v":0},{"$f":"SUM(D309:D320)","v":0},0,0,0,0,0,0]
["из них"]
["специалист по социальной работе",2,{"$f":"D309+F309+G309+J309","v":0}]
["социальный работник",3,{"$f":"D310+F310+G310+J310","v":0}]
["воспитатель",4,0]
["инструктор по труду",5,0]
["логопед",6,0]
["музыкальный руководитель",7,0]
["педагог-организатор",8,0]
["педагог-психолог",9,0]
["социальный педагог",10,0]
["педагог-дефектолог",11,0]
["учитель-логопед",12,0]
["иные должности",13,0]
[null,null,"МП"]
[]
[]
["Исполнитель ","ФИО , телефон "]
["Кузнецова Гульшат Ансаровна",83478445235]

{"sheet":"Дорожная карта табл.1","index":9,"n_rows":21,"n_cols":5,"rows_kept":21,"cut":false,"hidden":false,"merged":[[10,0,13,0],[14,0,15,0],[0,0,0,2],[1,0,1,2],[4,0,5,0],[4,1,5,1],[4,2,5,2],[7,0,8,0]]}
[{"$f":"'Дорожная карта табл.2'!A1:C1","v":"Автономная некоммерческая организация Центр социального обслуживания населения \"Доброе дело\" на территории муниципального района Бирский район Республики Башкортостан и городского поселения город Бирск Республики Башкортостан"}]
["(наименование организации)"]
[]
[]
[null,"Показатели ","за  2017 год (нарастающим итогом)"]
[]
[1,"Количество граждан, обратившихся за получением социальных услуг в учреждения социального обслуживания населения, всего, в том числе:",{"$f":"'о деятельности'!C11","v":1172}]
[2,"Количество граждан, получивших социальные услуги в учреждениях социального обслуживания населения, в общем числе граждан:",{"$f":"C9","v":1172},"*","строку не заполнять: формула!"]
[null,"на дому:",{"$f":"'о деятельности'!C12","v":1172}]
[3,"Количество граждан, получивших социальные услуги в учреждениях социального обслуживания населения, по категориям граждан-получателей услуг, всего, в том числе: ",{"$f":"C11+C15+C17+C18+C19","v":1172},"*","строку не заполнять: формула!"]
["3.1","граждане пожилого возраста и инвалиды",1126]
[null,"из них: "]
[null,"   ветераны войны ",129]
[null,"   ветераны труда",324]
["3.2","дети-инвалиды, из них:",1]
[null,"дети-сироты и дети, оставшиеся без попечения родителей"]
["3.3","семьи с детьми",43]
["3.4","лица без определенного места жительства и рода занятий"]
["3.5","другие категории граждан (указать): пенсионеры, инвалиды, граждане, оказавшиеся в трудной жизненной ситуации",2]
[]
["*","Значение по строке 2 (Количество граждан, получивших социальные услуги в учреждениях социального обслуживания населения, в общем числе граждан) должно равняться значению по строке 3 (Количество граждан, получивших социальные услуги в учреждениях социального обслуживания населения, по категориям граждан-получателей услуг, всего, в том числе)","3.5 беременные"]

{"sheet":"Дорожная карта табл.2","index":10,"n_rows":22,"n_cols":5,"rows_kept":22,"cut":false,"hidden":false,"merged":[[0,0,0,2],[1,0,1,2],[5,0,7,0],[8,0,10,0]]}
[{"$f":"'о составе и количестве граждан'!A3:I3","v":"Автономная некоммерческая организация Центр социального обслуживания населения \"Доброе дело\" на территории муниципального района Бирский район Республики Башкортостан и городского поселения город Бирск Республики Башкортостан"}]
["(наименование организации)"]
[]
[]
[null,"Показатели","за  2017 год            (нарастающим итогом)"]
[1,"Численность лиц (по категориям), нуждающихся в доставке лекарств на дом, в том числе:",621]
[null,"инвалиды",140]
[null,"ветераны войны",67]
[2,"Численность лиц (по категориям), воспользовавшихся в доставке лекарств на дом, в том числе:",621,"*"]
[null,"инвалиды",140]
[null,"ветераны войны",67]
[3,"Условия доставки лекарственных препаратов (в т.ч. размер платы за доставку)",{"$f":"C13+C14+C17","v":621},"*","строку не заполнять: формула!"]
["3.1","бесплатно, человек",237]
["3.2","за частичную плату:",{"$f":"C15","v":15},null,"строку не заполнять: формула!"]
[null,"человек",15]
[null,"размер платы за доставку, руб.",3.44,null,"указывать СРЕДНИЙ размер платы за 1 доставку 1 человеку!"]
["3.3","на условиях полной оплаты:",{"$f":"C18","v":369},null,"строку не заполнять: формула!"]
[null,"человек",369]
[null,"размер платы за достваку если получатель услуги относится к категории граждан для обеспечения лекарственными препаратами бесплатно, руб.",6.9,null,"указывать размер платы за 1 доставку 1 человеку!"]
[null,"размер платы за достваку если получатель услуги не относится к категории граждан для обеспечения лекарственными препаратами бесплатно, руб.",10.3,null,"указывать размер платы за 1 доставку 1 человеку!"]
[]
["*","Значение по строке 2 (Численность лиц (по категориям), воспользовавшихся в доставке лекарств на дом, в том числе) должно равняться значению по строке 3 (Условия доставки лекарственных препаратов (в т.ч. размер платы за доставку))"]

{"sheet":"Лист1","index":11,"n_rows":0,"n_cols":0,"rows_kept":0,"cut":false,"hidden":false,"merged":[]}